Cogmind - Beta 17 @@@ ROGUE MODE // 2026.07.30 @ 01:43:57 Player: Xintrosi Result: Escaped singularity! Performance ------------- Evolutions (9) 4500 Regions Visited (29) 5800 Robots Destroyed (406) 2030 Value Destroyed (21713) 21713 Prototype IDs (371) 7420 Alien Tech Used (12) 2400 Bonus (86142) 86142 TOTAL SCORE: 130005 Bonus ------- Triggered Max Security 2000 High Alert Combat Kills 7745 Follower Combat Kills 2311 Prayed to X0-1V1 5000 Major X0-1V1 Interference 14650 Installed LC Capacitor 1000 Subatomizer Sterilization 3000 Entered Garrisons 400 Used RIF Installer 1500 Met R17 at Cetus 500 Found Hidden Lab 3000 Used Core Reset Matrix 3000 Met R17 at Research 2000 Scanned by Researcher 500 Pursued by Intercept 1000 Integrated Exoskeleton 5000 Destroyed MAIN.C Shell 5000 Destroyed MAIN.C 10000 Met Architect 300 Destroyed A8 300 Destroyed A6 400 Destroyed Architect 15000 Win 3000 Friendly Fire -464 Cogmind --------- Core Integrity 773/1650 Matter 661/800 Energy 448/450 System Corruption 5% Temperature Cool (0) Movement Walking (30) Location Near Former Tau Ceti IV Parts ------- > --- POWER (1) -------- Reinforced Quantum Reactor (fused) > --- PROPULSION (4) --- Biometal Leg (fused) Sigix Exoskeleton > --- UTILITY (3) ------ Experimental Core Analyzer > --- WEAPON (3) ------- Sigix Shearcannon > --- INVENTORY (7) ---- Sigix Shearcannon Helical Railgun Chaos Jack (35) Peak State ------------ > --- POWER ------------ Zero-point Reactor > --- PROPULSION ------- Sigix Exoskeleton > --- UTILITY ---------- Experimental Heat Sink Advanced Quantum Shading Machine Advanced Target Analyzer > --- WEAPON ----------- L-Cannon > --- INVENTORY -------- Advanced Phase Shifter Advanced Force Field Transdimensional Reconstructor Sigix Shearcannon Sigix Shearcannon [Rating: 260] Favorites ----------- Power Constructs Engine Heavy Ion Engine Power Core Light Nuclear Core Reactor Constructs Propulsion Constructs Treads Light Treads Leg Sigix Exoskeleton Wheel Wheel Hover Unit Constructs Utility X0-1V1's Piety Tracker Device X0-1V1's Piety Tracker Storage High-capacity Storage Unit Processor Improved Targeting Computer Hackware Relay Coupler [NC] Protection Centrium Medium Armor Plating Artifact LC Capacitor Weapon Constructs Energy Gun Medium Laser Energy Cannon Constructs Ballistic Gun Light Assault Rifle Ballistic Cannon Flak Cannon Launcher Grenade Launcher Special Weapon Molecular Deconstructor Impact Weapon Power Maul Slashing Weapon Katana Piercing Weapon Spear Special Melee Weapon Chaos Jack Build | -11 -10 -9 -9 -8 -8 -8 -6 -6 -6 -6 -5 -5 -5 -5 -5 -5 -4 -4 -4 -4 -3 -3 -3 -2 -2 -2 -1 -1 -1 ------- Run | Yrd Mat Mat Min Mat Sto Rec Fac Low Low Zio Pro Fac Ext Cet Arc Hub Fac Gar Fac Gar Res Arm Lab Res Qua Sec Acc Com Ac0 Slots Evolved 18 | . . 2 . 2 . . 4 . . . . 2 . . . . 2 . . . 2 . . 2 . . 2 . . Power . | . . . . . . . . . . . . . . . . . . . . . . . . . . . . . . Propulsion 4 | . . . . 1 . . 1 . . . . . . . . . 1 . . . 1 . . . . . . . . Utility 9 | . . 1 . 1 . . 2 . . . . 2 . . . . 1 . . . 1 . . 1 . . . . . Weapon 5 | . . 1 . . . . 1 . . . . . . . . . . . . . . . . 1 . . 2 . . Parts Attached 193 | 8 18 4 7 9 17 8 10 1 1 4 2 9 8 3 3 2 . 16 1 14 9 2 5 2 1 13 8 8 . Power 14 | 1 3 1 1 . 2 . . . . . . . . . . . . . . 1 . . . . . 3 . 2 . Engine 8 | 1 3 1 1 . 2 . . . . . . . . . . . . . . . . . . . . . . . . Core 1 | . . . . . . . . . . . . . . . . . . . . 1 . . . . . . . . . Reactor 5 | . . . . . . . . . . . . . . . . . . . . . . . . . . 3 . 2 . Propulsion 20 | 2 3 1 1 4 8 . . . . . . . . . . . . . . . . . . . . . . 1 . Treads 15 | 2 3 1 . 1 8 . . . . . . . . . . . . . . . . . . . . . . . . Leg 1 | . . . . . . . . . . . . . . . . . . . . . . . . . . . . 1 . Wheel 4 | . . . 1 3 . . . . . . . . . . . . . . . . . . . . . . . . . Hover . | . . . . . . . . . . . . . . . . . . . . . . . . . . . . . . Flight . | . . . . . . . . . . . . . . . . . . . . . . . . . . . . . . Utility 115 | 2 8 1 . 3 1 2 9 1 1 3 1 7 8 2 2 2 . 16 1 12 9 2 5 . 1 6 6 4 . Device 76 | 1 3 . . 1 . 2 7 . 1 2 1 5 8 1 2 2 . 11 1 10 4 . 2 . 1 4 5 2 . Storage 6 | 1 1 . . . 1 . . . . . . . . . . . . . . . 1 1 . . . . . 1 . Processor 14 | . 3 . . 1 . . . 1 . . . 1 . . . . . 2 . . 1 1 . . . 2 1 1 . Hackware 1 | . . . . . . . . . . . . . . . . . . . . . 1 . . . . . . . . Protection 17 | . 1 1 . 1 . . 2 . . 1 . 1 . 1 . . . 3 . 2 2 . 2 . . . . . . Artifact 1 | . . . . . . . . . . . . . . . . . . . . . . . 1 . . . . . . Weapon 44 | 3 4 1 5 2 6 6 1 . . 1 1 2 . 1 1 . . . . 1 . . . 2 . 4 2 1 . Energy Gun 10 | 3 1 . 1 1 . 1 . . . 1 . 1 . . 1 . . . . . . . . . . . . . . Energy Cannon 13 | . . . . . 1 4 1 . . . . . . . . . . . . . . . . 1 . 3 2 1 . Ballistic Gun 3 | . 1 . . . . . . . . . . 1 . 1 . . . . . . . . . . . . . . . Ballistic Cannon 10 | . 2 1 1 1 4 . . . . . . . . . . . . . . . . . . 1 . . . . . Launcher 4 | . . . 3 . . 1 . . . . . . . . . . . . . . . . . . . . . . . Special Weapon 1 | . . . . . . . . . . . 1 . . . . . . . . . . . . . . . . . . Impact Weapon 1 | . . . . . . . . . . . . . . . . . . . . 1 . . . . . . . . . Slashing Weapon 2 | . . . . . 1 . . . . . . . . . . . . . . . . . . . . 1 . . . Piercing Weapon . | . . . . . . . . . . . . . . . . . . . . . . . . . . . . . . Special Melee Weapon . | . . . . . . . . . . . . . . . . . . . . . . . . . . . . . . Unidentified Prototypes 14 | . 1 . . . 1 2 . . . . 1 . . 1 1 . . 3 1 . 1 . 2 . . . . . . Corrupted Parts 3 | . . . . . . . . . . 1 . . 1 . . . . 1 . . . . . . . . . . . System Corruption 15 | . . . . . . . . . . 8 . . 6 . . . . 1 . . . . . . . . . . . Parts Lost 77 | . 4 . 8 4 . 2 10 3 3 4 1 4 2 . . . . 6 . 15 . . 1 . 3 5 . 1 1 Power 7 | . 1 . 1 . . . . . . . . . . . . . . 1 . 2 . . . . 1 . . 1 . Propulsion 11 | . 1 . 2 3 . . . . . 1 . 1 . . . . . . . 3 . . . . . . . . . Utility 34 | . . . . 1 . . 5 1 1 2 . 3 2 . . . . 3 . 9 . . 1 . 1 4 . . 1 Weapon 25 | . 2 . 5 . . 2 5 2 2 1 1 . . . . . . 2 . 1 . . . . 1 1 . . . Highest Loss Streak 6 | . 3 . 3 4 . 2 6 1 2 2 1 2 1 . . . . 2 . 4 . . 1 . 2 2 . 1 1 To Critical Strikes 2 | . 1 . . . . . . . . . . . . . . . . . . 1 . . . . . . . . . Average Backups 16 | 2 11 12 13 14 19 18 16 15 18 17 18 15 17 20 21 20 18 20 21 20 18 21 21 21 21 14 3 3 2 Power . | . . 1 . . . . 1 1 1 1 1 1 1 1 1 1 1 1 1 . . . . . . . . . . Propulsion 2 | 1 2 3 2 2 6 8 6 3 3 2 1 1 1 1 . . . . . . 1 2 1 1 1 . . . . Utility 8 | . 4 6 7 8 6 5 4 7 8 8 10 8 10 11 13 14 14 15 15 12 12 14 14 15 13 7 . . . Weapon 4 | . 3 2 3 3 4 3 4 3 5 5 4 4 4 5 6 5 3 4 5 6 4 4 4 3 4 3 1 1 2 Tool/Special . | . . . . . . . . . . . . . . . . . . . . . . . . . . . . . . Unused Backups 69 | . 1 . . . 11 7 . 4 2 5 1 1 3 3 3 3 1 2 . 3 7 . 1 . . 7 . 3 1 Power 3 | . . . . . . 1 . . . . . . 1 . . . . . . . . . . . . . . 1 . Propulsion 16 | . . . . . 2 5 . 3 . 1 1 . . 1 1 . . . . . 1 . 1 . . . . . . Utility 20 | . 1 . . . 3 . . 1 1 . . . 1 2 . . . 2 . . 1 . . . . 6 . 2 . Weapon 30 | . . . . . 6 1 . . 1 4 . 1 1 . 2 3 1 . . 3 5 . . . . 1 . . 1 Tool/Special . | . . . . . . . . . . . . . . . . . . . . . . . . . . . . . . Average Slot Usage (%) 67 | . 99 99 90 96 99 79 68 72 61 55 51 55 55 58 56 55 55 58 60 58 57 54 51 49 49 55 55 54 53 Engine 3 | . 13 11 11 9 9 5 4 2 . . . . 1 2 . . . . . . . . . . . . . . . Core 1 | . . . . . . 2 1 3 . . . 4 3 . . . . . 2 3 . . . . . . . . . Reactor 2 | . . . . . . . . . 5 6 6 . . 2 5 5 5 3 2 2 3 4 4 4 4 7 9 8 9 Treads 5 | . 27 22 13 13 13 7 . . 1 6 . 1 1 . 5 5 5 . . . . 1 . . 3 1 . . . Leg 2 | . . . . . . . 2 2 1 . 6 1 2 4 . . . 1 . 2 3 . . . . 2 9 11 18 Device 19 | . 7 11 11 11 12 14 24 18 17 18 18 26 32 29 27 27 30 27 30 24 21 19 23 16 17 22 10 12 7 Storage 6 | . 14 11 11 9 9 8 6 6 6 6 6 5 5 5 5 5 5 4 5 5 4 4 4 4 4 3 . . . Processor 3 | . 6 . . 8 9 7 . 5 6 . . 3 . . . . . . 5 5 4 7 5 4 4 2 9 8 9 Protection 3 | . . 10 11 6 5 3 5 6 . 4 6 1 . 2 5 5 5 5 . 4 3 3 1 3 2 3 . . . Energy Gun 1 | . 6 . 1 9 1 . 6 12 6 4 . . . . . . . . . 1 . . . . . . . . . Energy Cannon 3 | . . . . . 1 6 3 3 2 5 3 . 2 . . 4 5 4 4 2 1 . . 3 3 3 18 12 9 Ballistic Cannon 7 | . 16 33 13 17 28 11 3 . 9 1 2 4 2 5 4 . . 4 5 3 3 3 4 4 4 2 . . . Peak Build Rating 260 | 7 21 25 25 34 45 68 96 98 110 104 100 112 108 126 136 132 136 154 122 160 174 170 180 212 214 235 259 260 242 Average Rating 104 | 5 8 24 23 32 40 55 86 91 103 93 84 97 100 102 127 127 135 130 119 126 159 161 159 207 208 202 247 242 235 On Entrance 114 | . 7 21 25 24 34 45 63 88 98 102 85 100 103 96 126 125 132 135 118 122 160 158 149 180 208 195 233 255 239 Avg Prop Armor Cover (%) 9 | . . . 8 10 10 . . . . . . . . . . . . . . . . . . . . . . . . Naked Turns . | . . . . . . . . . . . . . . . . . . . . . . . . . . . . . . Heaviest Build 181 | 13 34 42 43 44 78 80 67 74 85 104 91 87 103 98 98 98 99 122 90 109 143 142 135 181 158 175 75 85 60 Greatest Support 256 | 40 40 40 40 42 40 48 90 132 132 118 44 61 124 160 160 200 200 200 100 115 256 256 164 164 219 166 60 88 60 Greatest Overweight (x) 7 | . . 1 4 4 7 4 1 . . 2 2 1 1 1 . . . 1 . 1 1 . . 1 1 1 1 1 . Average Overweight (x) . | . . 1 2 2 4 . . . . . 1 1 . . . . . . . . . . . . . . . . . Largest Inventory Capacity 22 | 8 15 17 17 17 22 22 17 17 22 22 22 22 22 22 22 22 22 22 22 22 22 22 22 22 22 22 7 12 7 Average Capacity 18 | 7 13 15 17 17 19 19 17 17 18 22 22 17 19 22 22 22 22 22 22 22 22 22 22 22 22 20 7 7 7 Most Carried 22 | 4 15 15 15 16 22 22 17 17 22 21 22 18 22 22 22 22 20 22 22 22 22 22 22 22 22 22 7 9 7 Average Carried 17 | 3 11 12 13 14 19 18 16 15 18 17 18 15 18 21 21 20 18 20 22 21 19 21 21 21 21 16 6 6 5 Final Capacity 22 | 8 15 17 17 17 22 17 17 17 22 22 22 17 22 22 22 22 22 22 22 22 22 22 22 22 22 7 7 7 7 Final Carried 22 | 4 14 15 15 16 22 16 17 17 21 18 19 17 22 22 22 21 18 22 22 22 19 22 22 22 22 7 7 7 4 Scrap Engine Consumption 452 | . . . . . . 30 51 10 11 24 4 25 53 15 8 8 2 75 8 36 24 19 3 12 6 28 . . . Constructs Created 18 | . . . . . . 3 7 3 . . . . . . . . . 3 . 2 . . . . . . . . . Constructs Modified 297 | . . . . . . 34 33 11 16 12 1 11 24 5 6 4 . 39 2 29 32 12 . 7 4 15 . . . Class Distribution -------------------- 40% | Construct 18% | Scavenger-Construct 11% | Mutant 10% | Gunner 7% | Alien-Construct 6% | Alien-Sigix 3% | Tank Dominant Class ---------------- Mutant | -10/Materials Tank | -9/Materials Mutant | -9/Mines Gunner | -8/Materials Gunner | -8/Storage Construct | -8/Recycling Construct | -6/Factory Construct | -6/Lower Caves Construct | -6/Lower Caves Construct | -6/Zion Construct | -5/Proximity Caves Construct | -5/Factory Scavenger-Construct | -5/Extension Scavenger-Construct | -5/Cetus Scavenger-Construct | -5/Archives Scavenger-Construct | -5/Hub_04(d) Scavenger-Construct | -4/Factory Scavenger-Construct | -4/Garrison Scavenger-Construct | -4/Factory Scavenger-Construct | -4/Garrison Construct | -3/Research Construct | -3/Armory Construct | -3/Lab Alien-Construct | -2/Research Alien-Construct | -2/Quarantine Alien-Construct | -2/Section 7 Alien-Sigix | -1/Access Alien-Sigix | -1/Command Alien-Sigix | -1/Access_0 Resources | -11 -10 -9 -9 -8 -8 -8 -6 -6 -6 -6 -5 -5 -5 -5 -5 -5 -4 -4 -4 -4 -3 -3 -3 -2 -2 -2 -1 -1 -1 ----------- Run | Yrd Mat Mat Min Mat Sto Rec Fac Low Low Zio Pro Fac Ext Cet Arc Hub Fac Gar Fac Gar Res Arm Lab Res Qua Sec Acc Com Ac0 Matter Collected 14152 | 216 369 263 788 632 700 814 1213 150 414 349 218 257 492 144 234 24 . 1806 155 1200 629 138 90 169 163 1282 606 561 76 Remotely . | . . . . . . . . . . . . . . . . . . . . . . . . . . . . . . Salvage Created 22991 | 78 718 409 340 142 833 789 1794 235 238 670 84 925 1015 610 424 714 . 2062 304 1970 167 439 90 276 296 3268 1488 2016 597 Parts 1101 | 8 39 21 14 8 43 48 76 7 10 36 2 44 39 27 18 31 . 85 17 94 4 25 8 16 12 160 63 114 32 Haulers Intercepted 11 | . 2 2 . . 4 . . . . . . . . . . . . . . . . . . . . 3 . . . Recyclers Shooed 8 | . 2 . 2 . 2 1 . . . . . . 1 . . . . . . . . . . . . . . . . Parts Field Recycled . | . . . . . . . . . . . . . . . . . . . . . . . . . . . . . . Retrieved Matter . | . . . . . . . . . . . . . . . . . . . . . . . . . . . . . . Parts Self-Destructed 26 | . . . . . . . . 8 10 . 8 . . . . . . . . . . . . . . . . . . Prevented 6 | . . . . . . . . 5 . . 1 . . . . . . . . . . . . . . . . . . Parts Restored . | . . . . . . . . . . . . . . . . . . . . . . . . . . . . . . Kills | -11 -10 -9 -9 -8 -8 -8 -6 -6 -6 -6 -5 -5 -5 -5 -5 -5 -4 -4 -4 -4 -3 -3 -3 -2 -2 -2 -1 -1 -1 ------- Run | Yrd Mat Mat Min Mat Sto Rec Fac Low Low Zio Pro Fac Ext Cet Arc Hub Fac Gar Fac Gar Res Arm Lab Res Qua Sec Acc Com Ac0 Combat Hostiles Destroyed 349 | . 16 11 20 4 21 10 31 3 6 5 4 14 11 7 4 11 . 39 3 39 2 7 1 3 4 31 13 23 6 Melee 5 | . . . . . . . . . . . . . . . . . . 1 . 2 . . . . . 2 . . . Guns 41 | . 14 . . 2 . . 14 2 2 1 1 . . . . . . . . 5 . . . . . . . . . Cannons 237 | . 2 11 3 2 19 9 13 . 4 3 1 8 11 . 4 10 . 26 3 28 1 7 1 2 4 25 12 22 6 AOE 31 | . . . 16 . 2 . 4 . . 1 2 2 . . . . . 2 . 1 . . . . . 1 . . . Classes Destroyed 32 | 1 4 1 3 2 1 1 4 2 . 3 1 1 1 . . . . 4 . . . . . . . 2 . 1 . Worker 9 | . 1 . . 1 . . 3 . . . . 2 . . . . . . 1 . . . . . . 1 . . . Builder 12 | . . . . 1 . 1 2 . . . . 2 . . . . . . . . . . . 1 . 3 2 . . Tunneler 4 | 4 . . . . . . . . . . . . . . . . . . . . . . . . . . . . . Hauler 11 | . 2 2 . . 4 . . . . . . . . . . . . . . . . . . . . 3 . . . Recycler 8 | . . . 1 . . 2 . . . . . 1 1 . . . . . . . . . . . . 1 2 . . Mechanic 1 | . . . . . . . 1 . . . . . . . . . . . . . . . . . . . . . . Operator 2 | . . . . . . . . . . . . . 1 . 1 . . . . . . . . . . . . . . Drone 1 | . . . . . . . . . . . 1 . . . . . . . . . . . . . . . . . . Watcher 4 | . . . . . . . 1 . . . . 1 . 1 . . . . . . . . . . . 1 . . . Swarmer 42 | . 3 . . . 1 . 1 . 3 . 3 . . . . . . 13 . 14 . . . . . 3 1 . . Cutter 4 | . . . . . . . . . . . . . . . . . . 4 . . . . . . . . . . . Saboteur 6 | . . . . . . . . . . . . . . . . . . 2 . 2 . 2 . . . . . . . Grunt 115 | . 13 9 2 2 10 3 17 1 . . . 5 4 . . 9 . 12 2 8 1 2 . . 2 7 1 5 . Brawler 8 | . . . . 1 3 . 1 . . . . . . . . . . 1 . . . . . . . . 1 1 . Duelist 1 | . . . . . 1 . . . . . . . . . . . . . . . . . . . . . . . . Researcher 6 | . . . . . . . . . . . . . . . . . . . . . . . . . . 6 . . . Sentry 44 | . . 2 . 1 6 6 3 . . . . 3 6 . 4 2 . . . 6 . . . 1 . 2 . 2 . Demolisher 2 | . . . 2 . . . . . . . . . . . . . . . . . . . . . . . . . . Specialist 8 | . . . . . . . . . . . . . . . . . . 4 . 1 . 2 . . . . . 1 . Hunter 29 | . . . . . . . 6 . 2 . . 3 1 . . . . 2 . 5 . . . 2 . 3 4 1 . Programmer 32 | . . . . . . . 3 . . . . 2 . . . . . . . 2 . . . . 2 11 4 8 . Heavy 2 | . . . . . . . . . . . . 1 . . . . . . . . . 1 . . . . . . . Behemoth 8 | . . . . . . . . 1 1 . . . . . . . . . 1 1 . . . . . . 2 2 . Cetus Guard 7 | . . . . . . . . . . . . . . 7 . . . . . . . . . . . . . . . Enhanced Grunt 2 | . . . . . . . . . . . . . . . . . . . . . . . . . . . . . 2 Enhanced Sentry 1 | . . . . . . . . . . . . . . . . . . . . . . . . . . . . . 1 Combat Programmer 1 | . . . . . . . . . . . . . . . . . . . . . . . . . . 1 . . . Striker 2 | . . . . . . . . . . . . . . . . . . . . . . . . . . 2 . . . Executioner 3 | . . . . . . . . . . . . . . . . . . 1 . . . . . . . 2 . . . Alpha 7 2 | . . . . . . . . . . . . . . . . . . . . . . . . . . . . 2 . Scrapper 2 | . . . . . . 2 . . . . . . . . . . . . . . . . . . . . . . . Zionite 14 | . . . . . . . . . . 14 . . . . . . . . . . . . . . . . . . . Tinkerer 2 | . . . . . . . . . . 2 . . . . . . . . . . . . . . . . . . . Assembled 16 | . . . 16 . . . . . . . . . . . . . . . . . . . . . . . . . . Savage 1 | . . . . . . . . . . . . . . . . . . . . . 1 . . . . . . . . Butcher 1 | . . . . . . . . . . . . . . 1 . . . . . . . . . . . . . . . Marauder 2 | . . . . . . . . . . 2 . . . . . . . . . . . . . . . . . . . Fireman 2 | . . . . . . . . . . 2 . . . . . . . . . . . . . . . . . . . Mutant 2 | . . . . . . . . 1 . 1 . . . . . . . . . . . . . . . . . . . Best Kill Streak 15 | 2 6 4 13 3 3 2 8 1 3 3 3 7 3 5 3 5 . 8 4 8 1 3 1 3 2 15 8 5 3 Combat Bots Only 12 | . 5 4 12 2 3 2 8 1 3 1 3 3 3 4 2 5 . 8 3 8 1 3 1 3 2 5 5 5 3 Max Kills in Single Turn 4 | 1 2 1 2 1 2 1 2 1 1 1 1 2 2 2 2 1 . 2 2 2 1 1 1 1 1 4 3 1 1 Gunslinging 1 | . 1 . . . . . . . . . . . . . . . . . . . . . . . . . . . . Exploded 2 | . . . 2 . 1 . 2 . . 1 1 2 . . . . . 2 . 1 . . . . . 1 . . . Melee 1 | . . . . . . . . . . . . . . . . . . 1 . 1 . . . . . 1 . . . Uniques/NPCs Destroyed 5 | . . . . . . . . . . . . . . . . . . . . . . . 1 . . . . 1 3 A5 (-3/Lab) MAIN.C (-1/Command) A8 (-1/Access_0) A6 (-1/Access_0) Architect (-1/Access_0) Combat | -11 -10 -9 -9 -8 -8 -8 -6 -6 -6 -6 -5 -5 -5 -5 -5 -5 -4 -4 -4 -4 -3 -3 -3 -2 -2 -2 -1 -1 -1 -------- Run | Yrd Mat Mat Min Mat Sto Rec Fac Low Low Zio Pro Fac Ext Cet Arc Hub Fac Gar Fac Gar Res Arm Lab Res Qua Sec Acc Com Ac0 Hostile Shots Fired 2817 | . 98 26 52 34 44 55 282 70 49 173 18 142 98 25 8 26 . 326 2 318 20 61 15 28 147 369 139 81 111 Missed 898 | . 22 7 18 10 14 12 113 32 16 56 11 39 31 11 3 9 . 108 2 99 5 12 3 8 44 112 35 24 42 Hits 1919 | . 76 19 34 24 30 43 169 38 33 117 7 103 67 14 5 17 . 218 . 219 15 49 12 20 103 257 104 57 69 Melee 31 | . . . 1 . 1 . . . . 3 . . . . . . . 11 . 4 . 4 . . . 1 1 . 5 Projectile 1888 | . 76 19 33 24 29 43 169 38 33 114 7 103 67 14 5 17 . 207 . 215 15 45 12 20 103 256 103 57 64 AOE 14 | . . . 8 . . . . . . . . . . . . . . . . 2 1 2 . . . . . 1 . Critical Strikes 82 | . 1 . 1 . 2 2 5 1 . 8 . 4 2 2 . 3 . 14 . 8 . 2 . 1 6 15 1 3 1 Part Disruptions 3 | . . . 1 . . . . . . . . . . . . . . 1 . 1 . . . . . . . . . Actively Blocked 1 | . . . . . . . . . . . . . . . . . . . . 1 . . . . . . . . . Damage Taken 32188 | . 925 246 1015 367 629 723 2520 592 689 2104 125 2199 1295 292 143 343 . 3599 18 4301 276 779 152 176 1978 3691 757 982 1272 Core 3553 | . 121 . 130 30 90 70 180 76 18 79 27 76 104 . . 38 . 487 . 259 35 25 . 22 91 660 220 236 479 Absorbed by Shields 4543 | . . . . . 3 . . . . . . . 156 . . . . . . 11 90 563 161 184 1258 1893 224 . . Ignored by Resistances 4703 | . . . . . . . 63 34 16 14 . 138 . 68 . . . 430 5 205 . . . . . 918 1014 714 1084 Regen/Repaired (Parts) 11898 | . . . . . . 117 860 340 272 897 6 1282 1689 404 117 250 . 1592 121 1649 274 446 . 189 22 1371 . . . Core Remaining (%) 71 | 100 51 . 62 . . 88 . . . . 81 . . . . 79 . . . 37 . . 95 . . 73 . . 46 Volleys Fired 1329 | 12 79 21 39 24 56 40 86 16 17 106 18 70 59 17 11 22 . 169 12 125 27 25 8 23 25 105 19 46 52 Largest 4 | 2 2 3 3 3 4 4 4 4 4 2 1 2 1 1 1 1 . 2 2 2 1 1 1 2 1 1 2 2 1 Hottest 900 | 100 90 90 90 123 148 252 211 177 203 275 245 367 367 33 294 294 . 294 206 360 301 345 345 465 345 466 360 900 180 Shots Fired 1845 | 24 151 63 46 54 136 61 204 56 51 111 18 71 58 19 11 22 . 183 15 128 27 25 8 24 25 103 32 68 51 Gun 461 | 24 128 . . 15 3 . 116 42 16 72 3 1 . 1 2 . . . . 38 . . . . . . . . . Cannon 1299 | . 23 63 13 38 130 61 83 14 35 38 11 55 58 . 9 22 . 180 15 90 25 25 8 24 25 103 32 68 51 Launcher 73 | . . . 33 1 3 . 5 . . 1 4 3 . 18 . . . 3 . . 2 . . . . . . . . Special 12 | . . . . . . . . . . . . 12 . . . . . . . . . . . . . . . . . Kinetic 789 | . 84 63 13 38 114 16 112 11 33 4 4 48 39 1 11 6 . 18 3 79 3 16 8 5 3 57 . . . Thermal 521 | 24 67 . . 15 19 26 56 19 11 48 7 8 19 . . 12 . 50 12 44 15 9 . 19 22 14 3 2 . Explosive 38 | . . . 27 1 . . 5 . . . . 3 . . . . . . . . 2 . . . . . . . . Electromagnetic 318 | . . . 6 . 3 19 31 26 7 59 7 . . 18 . 4 . 115 . 5 7 . . . . 11 . . . Slashing 167 | . . . . . . . . . . . . . . . . . . . . . . . . . . 21 29 66 51 Robot Hit Streak 21 | 7 13 13 3 8 7 21 15 14 8 10 3 9 9 5 7 13 . 10 7 15 2 8 3 8 14 7 17 18 11 Robot Miss Streak 10 | 3 4 2 2 3 9 6 6 4 3 4 10 2 3 1 1 1 . 5 2 6 3 2 . . 1 8 7 7 8 Penetration Max 6 | . . . . . . . 1 . . . . 1 1 . 1 . . . . 1 . . . . . 2 1 6 1 Secondary Targets 2 | . 2 . . . . . . . . . . . . . . . . . . . . . . . . . . . . Max Gunslinging Chain 1 | . 1 . . . . . . . . . . . . . . . . . . . . . . . . . . . . Capacitor 47 | . . . . . . . . . . . . . . . . . . . . . . . . . . . . 6 41 Shots Hit Robots 1148 | 17 101 41 15 28 89 53 114 33 36 94 8 33 39 6 9 20 . 115 4 89 8 14 3 5 12 66 13 48 35 Core Hits 789 | 4 34 15 43 10 82 35 84 9 14 38 6 22 14 29 5 10 . 71 4 41 6 7 2 4 4 57 31 48 60 Critical Kills 18 | . . . 1 . . . 2 . 1 . . . . . 1 1 . . . 10 . 1 . 1 . . . . . Critical Parts Destroyed 18 | . . . . . . . 2 . 2 2 . 1 . . . . . . . 10 . 1 . . . . . . . Critical Strikes 95 | 1 4 1 1 1 . . 10 . 3 3 . 1 . . 2 1 . 6 . 24 1 2 1 1 . 11 7 12 2 Burn 8 | 1 4 . . 1 . . . . . . . . . . . . . 2 . . . . . . . . . . . Meltdown 2 | . . . 1 . . . . . . . . . . . . . . . . . . . . 1 . . . . . Destroy 39 | . . . . . . . 4 . 3 3 . 1 . . 2 1 . . . 21 1 2 1 . . . . . . Blast 11 | . . 1 . . . . 6 . . . . . . . . . . . . 2 . . . . . 2 . . . Corrupt 4 | . . . . . . . . . . . . . . . . . . 4 . . . . . . . . . . . Smash 1 | . . . . . . . . . . . . . . . . . . . . 1 . . . . . . . . . Sever 30 | . . . . . . . . . . . . . . . . . . . . . . . . . . 9 7 12 2 Melee Attacks 38 | . . . . . 3 . . . . . . . 2 . . . . . . 12 1 . . . . 20 . . . Impact 12 | . . . . . . . . . . . . . . . . . . . . 12 . . . . . . . . . Slashing 26 | . . . . . 3 . . . . . . . 2 . . . . . . . 1 . . . . 20 . . . Piercing . | . . . . . . . . . . . . . . . . . . . . . . . . . . . . . . Sneak Attacks . | . . . . . . . . . . . . . . . . . . . . . . . . . . . . . . Combat Hostiles . | . . . . . . . . . . . . . . . . . . . . . . . . . . . . . . Follow-up Attacks . | . . . . . . . . . . . . . . . . . . . . . . . . . . . . . . Damage Inflicted 69042 | 210 1129 745 1209 515 1714 1251 4555 790 914 2480 263 2744 4035 1298 746 1828 . 5744 413 5005 755 2085 382 454 951 11410 4689 5526 5202 Guns 5282 | 210 1021 . . 129 14 . 1362 592 294 1011 38 . . . 24 . . . . 587 . . . . . . . . . Cannons 56934 | . 108 745 185 386 1360 1251 1453 198 620 1262 79 2285 3931 . 722 1828 . 5553 413 3986 541 2085 382 454 951 10739 4689 5526 5202 Explosions 5864 | . . . 1024 . 340 . 1740 . . 207 146 459 . 1298 . . . 191 . 135 214 . . . . 110 . . . Melee 945 | . . . . . . . . . . . . . 104 . . . . . . 297 . . . . . 544 . . . Ramming 17 | . . . . . . . . . . . . . . . . . . . . . . . . . . 17 . . . Kinetic 24354 | . 420 745 145 386 1360 218 1495 137 518 126 79 1891 2836 . 746 431 . 1085 39 3219 . 1373 382 282 513 5928 . . . Thermal 14509 | 210 709 . 40 129 14 656 1460 287 341 1574 . 448 1095 261 . 1001 . 2888 374 1141 287 712 . 172 438 272 . . . Explosive 2483 | . . . 837 . 137 . 857 . . . . 405 . . . . . . . 33 214 . . . . . . . . Electromagnetic 7545 | . . . 187 . 203 377 743 366 55 780 184 . . 1037 . 396 . 1771 . 315 254 . . . . 877 . . . Impact 297 | . . . . . . . . . . . . . . . . . . . . 297 . . . . . . . . . Slashing 19837 | . . . . . . . . . . . . . 104 . . . . . . . . . . . . 4316 4689 5526 5202 Piercing . | . . . . . . . . . . . . . . . . . . . . . . . . . . . . . . Highest Corruption 36 | . 1 . 1 . 3 7 36 18 . 8 22 2 8 8 8 . . 11 11 13 2 3 5 . 6 29 1 22 5 Average Corruption 7 | . 1 . 1 . 2 3 21 18 . 8 12 1 6 8 8 . . 7 11 12 2 2 3 . 5 15 1 5 2 Corruption Purged . | . . . . . . . . . . . . . . . . . . . . . . . . . . . . . . Corruption Blocked . | . . . . . . . . . . . . . . . . . . . . . . . . . . . . . . Effects 422 | . 9 . 3 . 14 32 57 23 . 23 31 5 48 16 3 . . 17 3 32 9 7 1 . 5 61 . 21 2 Message Errors 106 | . 3 . 1 . 2 10 18 4 . 5 12 2 9 3 . . . 7 . 5 4 1 . . 1 11 . 7 1 Matter Fused 97 | . 2 . . . 6 7 11 6 . 5 6 2 13 3 1 . . 3 . 5 1 2 . . 1 15 . 8 . Heat Flow Errors 60 | . . . 1 . 1 5 6 5 . 1 6 . 5 5 . . . 3 1 2 2 1 1 . 1 12 . 2 . Energy Discharges 42 | . . . 1 . 2 3 6 2 . 4 3 . 11 . . . . . . 2 1 . . . 1 5 . 1 . Parts Rejected 8 | . . . . . . . 2 . . . . . . . . . . 1 . 2 . . . . 1 2 . . . Parts Fused 5 | . . . . . . . 1 1 . . . . . . . . . 1 . . 1 . . . . 1 . . . Data Loss (minor) 49 | . . . . . 2 3 2 2 . 7 3 1 8 2 1 . . . 1 6 . 2 . . . 7 . 2 . Data Loss (major) 16 | . 3 . . . . 1 2 . . . 1 . 1 . 1 . . 1 1 3 . 1 . . . 1 . . . Misfires 6 | . 1 . . . . 2 . . . . . . . 2 . . . . . . . . . . . 1 . . . Alerts 5 | . . . . . . 1 1 . . . . . . 1 . . . . . 1 . . . . . . . 1 . Misdirections 5 | . . . . . . . 1 . . . . . . . . . . . . 1 . . . . . 3 . . . Weapon Failures 23 | . . . . . 1 . 7 3 . 1 . . 1 . . . . 1 . 5 . . . . . 3 . . 1 Overload Shots 10 | . . . . . . . 1 . . 9 . . . . . . . . . . . . . . . . . . . Overflow Damage 4299 | . . 6 57 . . 9 144 . . 19 31 263 551 16 . 174 . 563 . 295 . 213 . . 236 1569 38 62 53 Projectiles 3877 | . . 6 8 . . 9 . . . . . 236 551 . . 174 . 546 . 211 . 213 . . 236 1534 38 62 53 Explosions 312 | . . . 49 . . . 144 . . 19 31 27 . 16 . . . 17 . . . . . . . 9 . . . Melee 110 | . . . . . . . . . . . . . . . . . . . . 84 . . . . . 26 . . . Knockbacks 106 | . 3 6 . 6 20 . 11 . 1 . . 4 10 . . 3 . 9 . 18 . 2 2 . 2 9 . . . Impact 4 | . . . . . . . . . . . . . . . . . . . . 4 . . . . . . . . . Kinetic 95 | . 3 6 . 5 20 . 7 . 1 . . 4 10 . . 3 . 8 . 13 . 2 2 . 2 9 . . . Secondary 7 | . . . . 1 . . 4 . . . . . . . . . . 1 . 1 . . . . . . . . . Self-Inflicted Damage 792 | . . . 166 . 166 . 122 . . 49 15 78 . 5 . . . 53 . 72 . . . . . 66 . . . Shots 28 | . . . 9 . 4 . 2 . . 2 3 2 . 1 . . . 3 . 1 . . . . . 1 . . . Rammed . | . . . . . . . . . . . . . . . . . . . . . . . . . . . . . . Targets Rammed 1 | . . . . . . . . . . . . . . . . . . . . . . . . . . 1 . . . Kicked 1 | . . . . . . . . . . . . . . . . . . . . . . . . . . 1 . . . Crushed . | . . . . . . . . . . . . . . . . . . . . . . . . . . . . . . Highest Temperature 720 | 234 289 180 251 546 351 432 154 421 374 688 372 720 200 200 200 200 . 532 82 469 354 445 333 312 232 592 96 186 270 Average Temperature 134 | 83 108 53 56 225 85 154 45 174 165 153 147 156 136 88 130 149 . 142 34 130 125 174 131 119 118 140 72 88 76 Received Heat Transfer 4612 | . 423 96 130 189 250 341 528 117 60 176 . 180 192 6 12 126 . 333 . 763 37 145 . 12 301 147 . 36 12 Effects 81 | 1 4 . . 6 1 . . 10 2 9 4 8 5 . 3 . . 7 . 4 . 5 . . . 12 . . . Shutdowns 9 | . . . . 1 . . . 1 . 1 . 1 . . . . . 1 . 1 . 1 . . . 2 . . . Energy Bleed 16 | . 1 . . 1 1 . . 4 2 1 . . 1 . . . . 1 . . . 2 . . . 2 . . . Interference 38 | 1 3 . . 3 . . . 4 . 4 3 5 4 . 3 . . 1 . . . 2 . . . 5 . . . Matter Decay 5 | . . . . . . . . . . . . 1 . . . . . 2 . 2 . . . . . . . . . Short Circuit 5 | . . . . . . . . . . 1 1 . . . . . . . . 1 . . . . . 2 . . . Damage (minor) 5 | . . . . 1 . . . 1 . 2 . 1 . . . . . . . . . . . . . . . . . Damage (major) 2 | . . . . . . . . . . . . . . . . . . 2 . . . . . . . . . . . Damage (core) 1 | . . . . . . . . . . . . . . . . . . . . . . . . . . 1 . . . Siege Activations . | . . . . . . . . . . . . . . . . . . . . . . . . . . . . . . Martial Activations . | . . . . . . . . . . . . . . . . . . . . . . . . . . . . . . Shielding Activations . | . . . . . . . . . . . . . . . . . . . . . . . . . . . . . . Robots Disrupted 2 | . . . . . . . 1 . . . . . . 1 . . . . . . . . . . . . . . . Combat Hostiles 2 | . . . . . . . 1 . . . . . . 1 . . . . . . . . . . . . . . . Robots Corrupted 28 | . . . . . . 1 . 1 . 1 . . . 7 . 1 . 10 . 3 1 . . . . 3 . . . Combat Hostiles 27 | . . . . . . 1 . 1 . . . . . 7 . 1 . 10 . 3 1 . . . . 3 . . . Parts Fried 38 | . . . . . 2 3 3 3 . 2 1 . . 3 . 2 . 13 . 1 . . . . . 5 . . . Impact Corruptions 2 | . . . . . . . . . . . . . . . . . . . . 2 . . . . . . . . . Robots Melted 2 | . . . 1 . . . . . . . . . . . . . . . . . . . . 1 . . . . . Combat Hostiles 2 | . . . 1 . . . . . . . . . . . . . . . . . . . . 1 . . . . . Parts Melted 26 | 2 7 . . . . 5 2 . . 4 . . 1 . . . . 4 . . . . . 1 . . . . . Heat Transferred 14389 | 703 2189 . 37 407 37 2042 2008 . 222 1980 . 248 518 150 . 407 . 1313 185 1240 111 . . 148 333 111 . . . Parts Sabotaged 12 | . . . . . . . . . . . . . . . . . . 6 . 3 . 3 . . . . . . . Parts Stolen . | . . . . . . . . . . . . . . . . . . . . . . . . . . . . . . Parts Stripped . | . . . . . . . . . . . . . . . . . . . . . . . . . . . . . . Power Chain Reactions 7 | . . . . . . . 1 . . 3 . . . 2 . . . . . . . . . . . 1 . . . Alert | -11 -10 -9 -9 -8 -8 -8 -6 -6 -6 -6 -5 -5 -5 -5 -5 -5 -4 -4 -4 -4 -3 -3 -3 -2 -2 -2 -1 -1 -1 ------- Run | Yrd Mat Mat Min Mat Sto Rec Fac Low Low Zio Pro Fac Ext Cet Arc Hub Fac Gar Fac Gar Res Arm Lab Res Qua Sec Acc Com Ac0 Maximum Alert Level 5 | . . . . . 1 1 5 . . . . 4 3 2 1 1 . 4 3 5 3 1 . . . 5 5 5 . Low Security (%) 42 | 100 100 100 100 100 70 94 . . . . . . . . 65 76 100 20 . . . . . 100 100 30 . . . Level 1 10 | . . . . . 29 5 1 . . . . . 1 . 34 23 . 12 . . . 100 . . . 50 . . . Level 2 17 | . . . . . . . 31 . . . . . 93 100 . . . 27 4 3 21 . . . . 10 . . . Level 3 12 | . . . . . . . 19 . . . . 68 4 . . . . 25 96 20 78 . . . . . . . . Level 4 6 | . . . . . . . 18 . . . . 30 . . . . . 13 . 52 . . . . . . . 2 . Level 5 8 | . . . . . . . 28 . . . . . . . . . . . . 23 . . . . . . 61 97 . High Security . | . . . . . . . . . . . . . . . . . . . . . . . . . . . . . . Max Security 1 | . . . . . . . . . . . . . . . . . . . . . . . . . . 8 38 . . Sterilizations 1 | . . . . . . . 1 . . . . . . . . . . . . . . . . . . . . . . Peak Influence 2932 | 10 139 140 179 55 396 262 1769 . . . . 1239 811 605 246 238 106 1365 775 1732 976 396 . 90 82 2932 2473 2492 . Initial 1759 | . . . 43 . 3 143 509 . . . . 750 594 451 185 30 106 53 716 528 974 333 . . 42 . 1759 1582 . Average 470 | . 48 82 74 23 178 41 1067 . . . . 917 566 534 174 145 91 620 724 1341 788 291 . 35 35 413 1919 1667 . Influence Increases 19695 | 20 469 331 369 196 845 457 2390 102 158 . 197 1839 1124 254 111 298 . 1432 109 1394 108 311 . 164 174 2376 804 2022 1641 Destroy 0b10 Robot/C 7520 | . 320 220 80 80 420 180 820 80 120 . 140 320 600 160 80 220 . 900 60 820 40 180 . 60 80 1000 260 280 . Destroy 0b10 Robot/NC 320 | 20 15 10 5 10 20 15 45 . . . 5 30 30 10 5 . . . 5 . . . . 5 . 65 20 5 . Destroy Leader 1074 | . 84 74 10 20 98 10 146 10 30 . 20 102 70 . . 40 . 40 20 40 10 20 . 20 10 138 20 42 . Allied During Kill 903 | . . . . . . . 119 12 8 . 32 34 177 31 3 . . 49 8 17 . 16 . . . 314 33 50 . Successful Hack 111 | . 19 8 . 8 20 12 . . . . . . 6 . . . . 14 . . 20 . . . . 4 . . . Select Force Hacks 300 | . 30 . . . . 240 30 . . . . . . . . . . . . . . . . . . . . . . Disable Machine 1125 | . . 15 30 15 90 . 360 . . . . 105 . . 15 . . . . 45 . . . 15 45 150 45 120 75 Anti-Garrison Action 250 | . . . . . . . . . . . . . . . . . . 150 . 100 . . . . . . . . . Destroy Structure 5095 | . 1 4 94 18 28 . 129 . . . . 272 60 38 8 8 . 129 16 207 38 20 . 49 24 495 366 1525 1566 Advance Influence 1150 | . . . . . . . 400 . . . . 750 . . . . . . . . . . . . . . . . . Partial Spotted 15 | . . . . . 15 . . . . . . . . . . . . . . . . . . . . . . . . Lose Combat Pursuer 960 | . . . . 45 30 . 75 . . . . . 75 15 . 30 . 150 . 165 . 75 . 15 15 210 60 . . Miscellaneous 872 | . . . 150 . 124 . 266 . . . . 226 106 . . . . . . . . . . . . . . . . Influence Decreases 19304 | 20 469 218 482 188 485 565 949 918 651 392 197 626 1531 597 488 166 142 143 719 417 1204 625 322 89 249 644 1263 1081 3464 Entered New Map 10855 | . . . 70 . 5 225 151 630 169 392 . . 619 355 278 56 112 23 649 227 758 303 322 . 33 . 1173 891 3414 Time Decay 6582 | 20 429 218 332 148 480 340 538 238 452 . 187 386 612 222 190 110 30 . 50 . 446 262 . 89 199 454 90 60 . Search Patrol Dispatched 300 | . . . . . . . 100 . . . . 100 . . . . . . . . . . . . . 100 . . . Lost Part 687 | . 40 . 80 40 . . 100 30 30 . 10 40 20 . . . . 60 . 150 . . . . 17 50 . 10 10 Lost Ally 880 | . . . . . . . 60 20 . . . 100 280 20 20 . . 60 20 40 . 60 . . . 40 . 120 40 Squads Dispatched 97 | . 5 4 . 1 3 1 14 . . . . 6 3 . . 6 1 . 1 . 4 3 . 3 2 25 14 1 . Investigation 16 | . 3 2 . . . 1 2 . . . . . 1 . . 3 1 . . . 3 . . . . . . . . Extermination 14 | . . . . . . . 3 . . . . 1 . . . 1 . . . . . 1 . 1 2 4 1 . . Reinforcement 31 | . 2 2 . 1 2 . 3 . . . . 5 2 . . . . . . . 1 2 . 2 . 8 . 1 . Assault 29 | . . . . . . . 5 . . . . . . . . . . . . . . . . . . 12 12 . . Garrison 5 | . . . . . 1 . 1 . . . . . . . . 2 . . 1 . . . . . . . . . . Intercept 2 | . . . . . . . . . . . . . . . . . . . . . . . . . . 1 1 . . Searches Triggered 3 | . . . . . . . 1 . . . . 1 . . . . . . . . . . . . . 1 . . . Construction Impeded 3 | . . . . . . . 1 . . . . . 1 . . . . . . . . . . . . 1 . . . Haulers Reinforced 5 | . . . . . . . 2 . . . . . . . . . . . . . . . . . . 3 . . . Active Scanning Responses . | . . . . . . . . . . . . . . . . . . . . . . . . . . . . . . Cargo Convoy Interrupts . | . . . . . . . . . . . . . . . . . . . . . . . . . . . . . . Stealth | -11 -10 -9 -9 -8 -8 -8 -6 -6 -6 -6 -5 -5 -5 -5 -5 -5 -4 -4 -4 -4 -3 -3 -3 -2 -2 -2 -1 -1 -1 --------- Run | Yrd Mat Mat Min Mat Sto Rec Fac Low Low Zio Pro Fac Ext Cet Arc Hub Fac Gar Fac Gar Res Arm Lab Res Qua Sec Acc Com Ac0 Distress Signals 36 | . 1 . 1 . 2 . 3 . . . . 4 1 2 . 1 . . 1 . 4 . . . 1 1 1 13 . Communications Jammed 145 | . . . . . . . . . . . . . . . . . . . . . . 45 . . 1 99 . . . Distress Signals 144 | . . . . . . . . . . . . . . . . . . . . . . 45 . . . 99 . . . Times Spotted 623 | . 30 15 22 4 31 11 46 5 9 29 9 24 40 3 4 16 . 54 3 55 11 22 1 7 8 102 21 31 10 Peak Tracking Total 34 | . 3 4 4 5 4 4 7 3 3 5 4 5 5 5 1 5 . 11 3 5 5 8 1 3 3 34 11 5 4 Tactical Retreats 50 | . . . 1 2 2 . 2 . . 5 . 3 5 1 . 2 . 6 . 7 . 3 . 1 1 7 1 1 . ECM-based Alert Blocks 8 | . . . . . . . . . . . . 4 2 . . . . . . . . 2 . . . . . . . Traps | -11 -10 -9 -9 -8 -8 -8 -6 -6 -6 -6 -5 -5 -5 -5 -5 -5 -4 -4 -4 -4 -3 -3 -3 -2 -2 -2 -1 -1 -1 ------- Run | Yrd Mat Mat Min Mat Sto Rec Fac Low Low Zio Pro Fac Ext Cet Arc Hub Fac Gar Fac Gar Res Arm Lab Res Qua Sec Acc Com Ac0 Traps Triggered 23 | . 3 1 . . 4 . 2 . . . . . 1 . . . . 2 . 5 1 2 . . . 1 1 . . Indirectly . | . . . . . . . . . . . . . . . . . . . . . . . . . . . . . . Trap Hack Attempts . | . . . . . . . . . . . . . . . . . . . . . . . . . . . . . . Triggered . | . . . . . . . . . . . . . . . . . . . . . . . . . . . . . . Disarmed . | . . . . . . . . . . . . . . . . . . . . . . . . . . . . . . Reprogrammed . | . . . . . . . . . . . . . . . . . . . . . . . . . . . . . . Reused 1 | . . . . . . . . . . . 1 . . . . . . . . . . . . . . . . . . Traps Extracted . | . . . . . . . . . . . . . . . . . . . . . . . . . . . . . . Installed 4 | . . . . . . . . . . . 4 . . . . . . . . . . . . . . . . . . Triggered 1 | . . . . . . . . . . . 1 . . . . . . . . . . . . . . . . . . Most Traps Carried 2 | . . . . . . . . 2 . . . . . . . . . . . . . . . . . . . . . Machines | -11 -10 -9 -9 -8 -8 -8 -6 -6 -6 -6 -5 -5 -5 -5 -5 -5 -4 -4 -4 -4 -3 -3 -3 -2 -2 -2 -1 -1 -1 ---------- Run | Yrd Mat Mat Min Mat Sto Rec Fac Low Low Zio Pro Fac Ext Cet Arc Hub Fac Gar Fac Gar Res Arm Lab Res Qua Sec Acc Com Ac0 Machines Disabled 91 | . . 1 2 1 6 . 24 1 . . . 7 1 . 1 . . 1 . 6 . . 4 2 3 14 3 9 5 Max in Single Turn 8 | . . 1 1 1 3 . 8 1 . . . 4 1 . . . . 1 . 2 . . 1 1 1 1 2 4 1 Garrison Access 2 | . . . . . . . 1 . . . . . . . . . . . . . 1 . . . . . . . . Garrison Relay 3 | . . . . . . . . . . . . . . . . . . 2 . 1 . . . . . . . . . Phase Generator 1 | . . . . . . . . . . . . . . . . . . . . 1 . . . . . . . . . Energy Cycler 1 | . . . . . . . . . . . . . 1 . . . . . . . . . . . . . . . . Machines Repaired . | . . . . . . . . . . . . . . . . . . . . . . . . . . . . . . Machines Dismantled . | . . . . . . . . . . . . . . . . . . . . . . . . . . . . . . Machines Sabotaged . | . . . . . . . . . . . . . . . . . . . . . . . . . . . . . . Overloaded Fab Kills . | . . . . . . . . . . . . . . . . . . . . . . . . . . . . . . Hacking | -11 -10 -9 -9 -8 -8 -8 -6 -6 -6 -6 -5 -5 -5 -5 -5 -5 -4 -4 -4 -4 -3 -3 -3 -2 -2 -2 -1 -1 -1 --------- Run | Yrd Mat Mat Min Mat Sto Rec Fac Low Low Zio Pro Fac Ext Cet Arc Hub Fac Gar Fac Gar Res Arm Lab Res Qua Sec Acc Com Ac0 Machines Accessed 59 | . 7 4 . 2 7 10 4 1 1 . 1 1 2 . . 3 1 2 1 . 4 1 2 1 . 2 1 . 1 Terminals 29 | . 6 3 . 2 7 1 2 . . . 1 . 1 . . 2 . 2 . . . . . . . 2 . . . Fabricators 3 | . . . . . . . . . . . . . . . . . . . . . 1 1 . . . . 1 . . Repair Stations 1 | . . . . . . . . . . . . . . . . . . . . . 1 . . . . . . . . Recycling Units 11 | . 1 . . . . 8 1 . . . . . 1 . . . . . . . . . . . . . . . . Scanalyzers 4 | . . 1 . . . . 1 . . . . 1 . . . . . . . . 1 . . . . . . . . Garrison Access 5 | . . . . . . . . . . . . . . . . 1 1 . 1 . 1 . . 1 . . . . . Total Hacks 131 | . 13 12 . 4 11 17 10 1 1 . 1 2 4 . . 8 3 3 1 . 15 2 2 1 . 2 1 . 17 Successful 77 | . 7 4 . 1 5 14 5 1 1 . 1 2 1 . . 1 1 1 1 . 11 . 2 . . 1 . . 17 Failed 53 | . 6 7 . 3 6 3 5 . . . . . 3 . . 7 2 2 . . 4 2 . 1 . 1 1 . . Catastrophic 9 | . 1 1 . 1 2 1 . . . . . . . . . . . 2 . . . . . 1 . . . . . Database Lockouts 1 | . . 1 . . . . . . . . . . . . . . . . . . . . . . . . . . . Manual 48 | . 10 5 . 4 5 12 4 . . . 1 . 4 . . 3 . . . . . . . . . . . . . Terminals 53 | . 12 8 . 4 11 2 4 . . . 1 . 1 . . 5 . 3 . . . . . . . 2 . . . Fabricators 6 | . . . . . . . . . . . . . . . . . . . . . 3 2 . . . . 1 . . Repair Stations 5 | . . . . . . . . . . . . . . . . . . . . . 5 . . . . . . . . Recycling Units 20 | . 1 . . . . 13 3 . . . . . 3 . . . . . . . . . . . . . . . . Scanalyzers 15 | . . 4 . . . . 3 . . . . 2 . . . . . . . . 6 . . . . . . . . Garrison Access 9 | . . . . . . . . . . . . . . . . 3 3 . 1 . 1 . . 1 . . . . . Terminal Hacks 42 | . 6 1 . 1 5 2 1 1 1 . 1 . 1 . . 1 . 1 . . . . 2 . . 1 . . 17 Record 19 | . . . . . . . . . . . 1 . . . . . . . . . . . 1 . . . . . 17 Part Schematic 1 | . 1 . . . . . . . . . . . . . . . . . . . . . . . . . . . . Robot Analysis 2 | . 2 . . . . . . . . . . . . . . . . . . . . . . . . . . . . Open Door 8 | . . . . . 5 . . 1 1 . . . . . . . . . . . . . . . . 1 . . . Branch Access Points 4 | . 1 1 . 1 . . 1 . . . . . . . . . . . . . . . . . . . . . . Zone Layout 4 | . 2 . . . . . . . . . . . 1 . . 1 . . . . . . . . . . . . . Patrol Navigation 1 | . . . . . . . . . . . . . . . . . . 1 . . . . . . . . . . . Release Object 3 | . . . . . . 2 . . . . . . . . . . . . . . . . 1 . . . . . . Fabricator Hacks 2 | . . . . . . . . . . . . . . . . . . . . . 2 . . . . . . . . Load Schematic 1 | . . . . . . . . . . . . . . . . . . . . . 1 . . . . . . . . Build 1 | . . . . . . . . . . . . . . . . . . . . . 1 . . . . . . . . Repair Station Hacks 3 | . . . . . . . . . . . . . . . . . . . . . 3 . . . . . . . . Scan Component 2 | . . . . . . . . . . . . . . . . . . . . . 2 . . . . . . . . Repair 1 | . . . . . . . . . . . . . . . . . . . . . 1 . . . . . . . . Recycling Unit Hacks 1 | . . . . . . 1 . . . . . . . . . . . . . . . . . . . . . . . Report Inventory 1 | . . . . . . 1 . . . . . . . . . . . . . . . . . . . . . . . Scanalyzer 13 | . . 3 . . . . 3 . . . . 2 . . . . . . . . 5 . . . . . . . . Insert Component 5 | . . 1 . . . . 1 . . . . 1 . . . . . . . . 2 . . . . . . . . Analyze 4 | . . 1 . . . . . . . . . 1 . . . . . . . . 2 . . . . . . . . Retrieve Study 4 | . . 1 . . . . 2 . . . . . . . . . . . . . 1 . . . . . . . . Garrison Access Hacks 3 | . . . . . . . . . . . . . . . . . 1 . 1 . 1 . . . . . . . . Unlock Access 2 | . . . . . . . . . . . . . . . . . 1 . 1 . . . . . . . . . . Seal Access 1 | . . . . . . . . . . . . . . . . . . . . . 1 . . . . . . . . Unauthorized Hacks 13 | . 1 . . . . 11 1 . . . . . . . . . . . . . . . . . . . . . . Terminals . | . . . . . . . . . . . . . . . . . . . . . . . . . . . . . . Fabricators . | . . . . . . . . . . . . . . . . . . . . . . . . . . . . . . Repair Stations . | . . . . . . . . . . . . . . . . . . . . . . . . . . . . . . Recycling Units 13 | . 1 . . . . 11 1 . . . . . . . . . . . . . . . . . . . . . . Mask 3 | . . . . . . 3 . . . . . . . . . . . . . . . . . . . . . . . Tunnel 10 | . 1 . . . . 8 1 . . . . . . . . . . . . . . . . . . . . . . Scanalyzers . | . . . . . . . . . . . . . . . . . . . . . . . . . . . . . . Garrison Access . | . . . . . . . . . . . . . . . . . . . . . . . . . . . . . . Data Cores Recovered . | . . . . . . . . . . . . . . . . . . . . . . . . . . . . . . Used . | . . . . . . . . . . . . . . . . . . . . . . . . . . . . . . Hacking Detections 33 | . 4 3 . 2 3 3 4 . . . . 1 1 . . 3 1 1 . . 3 1 . 1 . 1 1 . . Full Trace Events 8 | . . 1 . . . . . . . . . . . . . 3 1 1 . . 2 . . . . . . . . Feedback Events . | . . . . . . . . . . . . . . . . . . . . . . . . . . . . . . Feedback Blocked . | . . . . . . . . . . . . . . . . . . . . . . . . . . . . . . Robot Schematics Acquired 6 | . . . . . . . . . . . . . . . . . . . . . . . . . . 6 . . . Robots Built . | . . . . . . . . . . . . . . . . . . . . . . . . . . . . . . Authchips . | . . . . . . . . . . . . . . . . . . . . . . . . . . . . . . Time . | . . . . . . . . . . . . . . . . . . . . . . . . . . . . . . Total Robot Build Rating . | . . . . . . . . . . . . . . . . . . . . . . . . . . . . . . Part Schematics Acquired 17 | . 1 1 . . . . . . . . . 1 . . . . . . . . 2 . . . . 12 . . . Parts Built 1 | . . . . . . . . . . . . . . . . . . . . . 1 . . . . . . . . Authchips . | . . . . . . . . . . . . . . . . . . . . . . . . . . . . . . Time 25 | . . . . . . . . . . . . . . . . . . . . . 25 . . . . . . . . Total Part Build Rating 1 | . . . . . . . . . . . . . . . . . . . . . 1 . . . . . . . . Part Studies Acquired 4 | . . 1 . . . . 2 . . . . . . . . . . . . . 1 . . . . . . . . Parts Repaired 1 | . . . . . . . . . . . . . . . . . . . . . 1 . . . . . . . . Time 112 | . . . . . . . . . . . . . . . . . . . . . 112 . . . . . . . . Parts Recycled . | . . . . . . . . . . . . . . . . . . . . . . . . . . . . . . Recycled Matter . | . . . . . . . . . . . . . . . . . . . . . . . . . . . . . . Retrieved Matter . | . . . . . . . . . . . . . . . . . . . . . . . . . . . . . . Retrieved Components . | . . . . . . . . . . . . . . . . . . . . . . . . . . . . . . Parts Scanalyzed 4 | . . 1 . . . . . . . . . 1 . . . . . . . . 2 . . . . . . . . Part Schematics Acquired 4 | . . 1 . . . . . . . . . 1 . . . . . . . . 2 . . . . . . . . Parts Damaged . | . . . . . . . . . . . . . . . . . . . . . . . . . . . . . . Bothacking | -11 -10 -9 -9 -8 -8 -8 -6 -6 -6 -6 -5 -5 -5 -5 -5 -5 -4 -4 -4 -4 -3 -3 -3 -2 -2 -2 -1 -1 -1 ------------ Run | Yrd Mat Mat Min Mat Sto Rec Fac Low Low Zio Pro Fac Ext Cet Arc Hub Fac Gar Fac Gar Res Arm Lab Res Qua Sec Acc Com Ac0 Used RIF Installer 3 | . . . . . . . . . . . . . . . . . . 1 . 2 . . . . . . . . . Signal Jammer 1 | . . . . . . . . . . . . . . . . . . . . 1 . . . . . . . . . Watcher Feeds 1 | . . . . . . . . . . . . . . . . . . . . 1 . . . . . . . . . Program Shield 1 | . . . . . . . . . . . . . . . . . . . . 1 . . . . . . . . . Robots Hacked . | . . . . . . . . . . . . . . . . . . . . . . . . . . . . . . Non-combat . | . . . . . . . . . . . . . . . . . . . . . . . . . . . . . . Combat . | . . . . . . . . . . . . . . . . . . . . . . . . . . . . . . Robot Hacks Applied . | . . . . . . . . . . . . . . . . . . . . . . . . . . . . . . Relay Couplers Released 14 | . . . . . . . 2 . . . . . . . . . . 8 . 4 . . . . . . . . . Machine Destruction 14 | . . . . . . . 2 . . . . . . . . . . 8 . 4 . . . . . . . . . Attached 1 | . . . . . . . . . . . . . . . . . . . . . 1 . . . . . . . . Fabnet Peak Effective % . | . . . . . . . . . . . . . . . . . . . . . . . . . . . . . . Robots Rewired 23 | . . . . . . . . . . . . . 15 . . . . 5 . . . 3 . . . . . . . Allies Hacked 1 | . . . . . . . . . . . . . . . . . . . . . . . . . . 1 . . . Hacks Repelled . | . . . . . . . . . . . . . . . . . . . . . . . . . . . . . . Allies | -11 -10 -9 -9 -8 -8 -8 -6 -6 -6 -6 -5 -5 -5 -5 -5 -5 -4 -4 -4 -4 -3 -3 -3 -2 -2 -2 -1 -1 -1 -------- Run | Yrd Mat Mat Min Mat Sto Rec Fac Low Low Zio Pro Fac Ext Cet Arc Hub Fac Gar Fac Gar Res Arm Lab Res Qua Sec Acc Com Ac0 Total Allies 100 | . . . . . . . 6 . . 1 1 12 18 . . . . 5 . 1 . 3 . . . 6 20 23 4 Largest Group 10 | . . . . . . . 4 2 1 1 1 9 7 3 1 . . 4 2 1 . 3 . . . 5 10 6 2 Highest-Rated Group 438 | . . . . . . . 164 75 34 79 82 200 205 95 31 . . 188 166 47 . 126 . . . 345 141 97 438 Highest-Rated Ally 219 | . . . . . . . 41 41 34 79 82 31 39 39 31 . . 119 119 47 . 42 . . . 69 15 83 219 Total Orders . | . . . . . . . . . . . . . . . . . . . . . . . . . . . . . . Ally Attacks 472 | . . . . . . . 95 10 6 12 7 17 118 16 9 . . 63 6 6 . 14 . . . 44 6 24 19 Total Damage 12240 | . . . . . . . 1804 317 90 388 209 293 2544 230 166 . . 1986 317 97 . 263 . . . 1842 30 454 1210 Kills 80 | . . . . . . . 12 2 . 3 4 2 23 2 . . . 6 . 2 . 2 . . . 17 . 5 . Allies Corrupted 3 | . . . . . . . . . . . . . . . . . . . . . . . . . . . . 3 . Allies Melted 3 | . . . . . . . . . . . . . 1 . . . . . . . . 2 . . . . . . . X0-1V1 Amusement Gains 725 | . 18 25 30 . 40 71 55 . . 55 5 10 40 . . . . 35 . 60 . 5 67 15 5 67 52 50 20 Good Acts 171 | . 1 2 8 6 9 15 14 10 2 6 4 3 8 . 1 . 1 7 1 15 5 4 . 2 1 21 4 14 7 Bad Acts 103 | . 2 3 2 . 6 12 17 2 6 4 1 6 6 3 . 1 . 11 1 2 1 . . . 4 1 . 11 1 Intel | -11 -10 -9 -9 -8 -8 -8 -6 -6 -6 -6 -5 -5 -5 -5 -5 -5 -4 -4 -4 -4 -3 -3 -3 -2 -2 -2 -1 -1 -1 ------- Run | Yrd Mat Mat Min Mat Sto Rec Fac Low Low Zio Pro Fac Ext Cet Arc Hub Fac Gar Fac Gar Res Arm Lab Res Qua Sec Acc Com Ac0 Active Infowar (turns) 2240 | 10 147 . . . . . . . . . . 576 97 . . . . 2 . . 58 45 48 . 218 1038 1 . . Optics 2 | . . . . . . . . . . . . . . . . . . 2 . . . . . . . . . . . Seismic 157 | 10 147 . . . . . . . . . . . . . . . . . . . . . . . . . . . . Decoding 576 | . . . . . . . . . . . . 576 . . . . . . . . . . . . . . . . . Jamming 1233 | . . . . . . . . . . . . . . . . . . . . . 58 . . . 218 957 . . . ECM 713 | . . . . . . . . . . . . 441 97 . . . . . . . . 45 48 . . 81 1 . . Robot Analysis Total 2 | . 2 . . . . . . . . . . . . . . . . . . . . . . . . . . . . Derelict Logs Recovered 7 | . . . 1 . . . . 1 1 1 3 . . . . . . . . . . . . . . . . . . Drone Launches . | . . . . . . . . . . . . . . . . . . . . . . . . . . . . . . Drone Recoveries . | . . . . . . . . . . . . . . . . . . . . . . . . . . . . . . Decoded 0b10 Intel 15 | . . . . . . . . . . . . 15 . . . . . . . . . . . . . . . . . Traps 4 | . . . . . . . . . . . . 4 . . . . . . . . . . . . . . . . . Emergency Access 2 | . . . . . . . . . . . . 2 . . . . . . . . . . . . . . . . . Items 6 | . . . . . . . . . . . . 6 . . . . . . . . . . . . . . . . . Machines 2 | . . . . . . . . . . . . 2 . . . . . . . . . . . . . . . . . Guards 1 | . . . . . . . . . . . . 1 . . . . . . . . . . . . . . . . . Exploration | -11 -10 -9 -9 -8 -8 -8 -6 -6 -6 -6 -5 -5 -5 -5 -5 -5 -4 -4 -4 -4 -3 -3 -3 -2 -2 -2 -1 -1 -1 ------------- Run | Yrd Mat Mat Min Mat Sto Rec Fac Low Low Zio Pro Fac Ext Cet Arc Hub Fac Gar Fac Gar Res Arm Lab Res Qua Sec Acc Com Ac0 Turns Passed 25164 | 196 1606 520 810 403 1349 2733 1528 500 1133 987 907 906 2013 474 390 234 78 1627 100 1139 1113 579 200 266 477 1454 308 940 194 Spaces Moved 14866 | 84 770 169 471 209 649 1585 1320 614 667 397 372 314 635 262 121 94 41 898 150 633 394 385 170 199 254 861 338 1464 346 Core 3 | 3 . . . . . . . . . . . . . . . . . . . . . . . . . . . . . Treads 3698 | 81 770 169 98 26 52 501 128 19 214 393 . 97 222 23 121 94 41 65 . 20 61 118 . . 184 201 . . . Legs 5521 | . . . . . . 112 574 144 93 1 372 63 312 226 . . . 369 . 331 333 23 . . . 420 338 1464 346 Wheels 1366 | . . . 373 183 597 . . . . . . . 101 13 . . . . . . . . . 29 70 . . . . Hover 1908 | . . . . . . 516 327 . 360 3 . 154 . . . . . 129 . 153 . 51 . . . 215 . . . Flight 2370 | . . . . . . 456 291 451 . . . . . . . . . 335 150 129 . 193 170 170 . 25 . . . Fastest Speed 30 | 50 160 240 125 105 105 60 62 48 130 130 215 215 142 142 185 185 185 38 38 31 83 59 78 78 87 30 30 30 30 Average Speed 123 | 156 160 240 151 140 164 159 77 57 130 160 224 215 245 156 185 185 185 92 38 94 182 97 78 104 157 121 32 34 30 Slowest Speed 410 | 160 160 240 240 232 250 410 172 130 130 263 263 215 341 267 185 185 185 185 38 240 333 135 78 127 206 231 90 90 30 Overloaded Moves . | . . . . . . . . . . . . . . . . . . . . . . . . . . . . . . Propulsion Burnouts . | . . . . . . . . . . . . . . . . . . . . . . . . . . . . . . Robots Hopped 7 | . . . . . . 4 . . . . . . . . . . . . 1 . . 2 . . . . . . . Potential Cave-ins 50 | . . . . . . . . . . . . 2 . . . . . . . . . . . . . 8 . 17 23 Cave-ins Triggered 4 | . . . 1 . . . 1 . . . . . . . . . . . . . . . . . . . . 1 1 Teleports 2 | . . . . . . . . . . . . . . . . . . . . . . . . . . . . 1 1 Exploration Rate (%) 46 | 5 98 33 81 12 84 98 23 70 71 24 72 10 81 56 75 15 2 77 6 69 9 34 97 9 37 51 11 48 27 Regions Visited 29 Branch Regions 17 Pre-discovered Areas 11 | . 1 . . . . 8 1 . . . 1 . . . . . . . . . . . . . . . . . . Known Exits Taken 12 | . . 1 . 1 1 . 1 . 1 . . 1 1 . . 1 1 . 1 . 1 . . . . . . 1 . Unknown Exits Taken 15 | 1 1 . 1 . . 1 . 1 . 1 1 . . 1 1 . . . . . . 1 1 1 1 1 1 . . Scrap Searched 8 | . . . 1 . . . . 2 1 1 3 . . . . . . . . . . . . . . . . . . Spaces Dug 692 | . . . . 5 15 . 1 . . . . 31 . . . . . 8 6 2 13 7 . 12 9 36 40 418 89 Terrain Destroyed 2565 | . . . 114 18 32 . 156 1 8 2 10 169 24 25 4 3 . 28 7 160 30 10 . 15 10 176 165 852 546 Melee 5 | . . . . . 1 . . . . . . . . . . . . . . . 1 . . . . 3 . . . Projectile 1991 | . . . . 8 15 . 6 1 8 2 10 57 24 1 4 3 . 28 7 38 15 10 . 15 10 166 165 852 546 AOE 569 | . . . 114 10 16 . 150 . . . . 112 . 24 . . . . . 122 14 . . . . 7 . . . Terrain Rammed . | . . . . . . . . . . . . . . . . . . . . . . . . . . . . . . Walls Destroyed . | . . . . . . . . . . . . . . . . . . . . . . . . . . . . . . Machines Disabled . | . . . . . . . . . . . . . . . . . . . . . . . . . . . . . . Actions | -11 -10 -9 -9 -8 -8 -8 -6 -6 -6 -6 -5 -5 -5 -5 -5 -5 -4 -4 -4 -4 -3 -3 -3 -2 -2 -2 -1 -1 -1 --------- Run | Yrd Mat Mat Min Mat Sto Rec Fac Low Low Zio Pro Fac Ext Cet Arc Hub Fac Gar Fac Gar Res Arm Lab Res Qua Sec Acc Com Ac0 Total 20031 | 121 1006 236 521 273 837 1745 1675 727 893 641 430 463 1026 311 286 133 44 1510 176 1007 763 559 232 231 304 1129 505 1822 425 Wait 2809 | 14 107 40 . 21 37 81 244 76 194 114 25 46 160 16 135 13 . 353 13 142 309 113 29 5 18 86 125 270 23 Move 14822 | 83 769 168 470 208 648 1576 1319 613 666 396 371 313 634 261 120 93 41 896 148 632 393 380 169 198 253 861 337 1462 344 Hop 7 | . . . . . . 4 . . . . . . . . . . . . 1 . . 2 . . . . . . . Pick Up 180 | 4 19 3 2 7 25 5 6 10 7 5 3 4 10 4 7 . . 8 . 11 5 5 7 . 1 10 1 10 1 Fast Attach 120 | 7 2 . 2 3 8 7 7 . 1 3 1 5 1 3 . . . 16 1 11 2 4 3 2 3 13 7 8 . Attach 93 | . 3 2 5 4 1 5 6 1 1 6 1 7 2 1 1 . 1 5 . 11 4 . 2 1 1 13 4 4 1 Detach 71 | . 1 . . . 1 8 4 1 . 4 1 6 1 3 1 . . 7 . 7 5 . 1 1 . 5 8 5 1 Swap 105 | 1 17 2 3 4 17 2 1 . 4 . 1 6 8 1 2 2 . 3 . 5 8 3 4 1 2 7 . 1 . Drop 192 | . 9 . . 2 33 17 2 10 3 7 5 6 9 5 9 3 2 7 1 11 9 3 9 . 1 9 4 14 2 Fire 1329 | 12 79 21 39 24 56 40 86 16 17 106 18 70 59 17 11 22 . 169 12 125 27 25 8 23 25 105 19 46 52 Melee 38 | . . . . . 3 . . . . . . . 2 . . . . . . 12 1 . . . . 20 . . . Ram . | . . . . . . . . . . . . . . . . . . . . . . . . . . . . . . Kick . | . . . . . . . . . . . . . . . . . . . . . . . . . . . . . . Crush . | . . . . . . . . . . . . . . . . . . . . . . . . . . . . . . Escape Stasis 69 | . . . . . 8 . . . . . . . 2 . . . . 17 . 40 . . . . . . . 1 1 Rewire 192 | . . . . . . . . . . . . . 138 . . . . 29 . . . 24 . . . . . 1 . Trap 4 | . . . . . . . . . . . 4 . . . . . . . . . . . . . . . . . . Miscellaneous . | . . . . . . . . . . . . . . . . . . . . . . . . . . . . . . Route ------- -11/Scrapyard -10/Materials (discovered 6 exits: *Mat x3 / *Min x2 / [*Sub]) -9/Materials (discovered 3 exits: *Mat / *Min x2) -9/Mines -8/Materials (discovered 2 exits: *Sto x2) -8/Storage (discovered 2 exits: [*Fac] / *Rec) -8/Recycling -6/Factory (discovered 2 exits: *Low x2) -6/Lower Caves -6/Lower Caves -6/Zion -5/Proximity Caves -5/Factory (discovered 5 exits: Fac x2 / [*Upp] / *Ext x2) -5/Extension (discovered 3 exits: *Fac x2 / *Cet) -5/Cetus (discovered 2 exits: *Fac / [*Arc]) -5/Archives (discovered 2 exits: *Fac / *Hub) -5/Hub_04(d) -4/Factory -4/Garrison (discovered 3 exits: *Fac x3) -4/Factory -4/Garrison (discovered 2 exits: *Res x2) -3/Research (discovered 2 exits: *Res / *Arm) -3/Armory (discovered 2 exits: *Res / *Lab) -3/Lab -2/Research -2/Quarantine (discovered 3 exits: *Acc / *Sec / [*Frg]) -2/Section 7 -1/Access -1/Command (discovered 3 exits: [*Sur x2] / *Ac0) -1/Access_0 Near Former Tau Ceti IV History --------- Turn | Location | Event 43 | -11/Scrapyard | Discovered new exit (range 15) 197 | -11/Scrapyard | Entered Materials 311 | -10/Materials | Build established: Mutant 476 | -10/Materials | Lost 3 parts (1p1n1w) 803 | -10/Materials | Discovered new exit (range 10) 1002 | -10/Materials | Discovered new exit (range 7) 1039 | -10/Materials | Discovered new exit (range 15) 1149 | -10/Materials | Discovered new exit (range 8) 1180 | -10/Materials | Discovered new exit (range 6) 1322 | -10/Materials | Identified exit to Mines 1602 | -10/Materials | Discovered new exit (range 9) 1720 | -10/Materials | Prayed at D.C.S.S. Altar Unit 1795 | -10/Materials | X0-1V1 announced a LAN party 1803 | -10/Materials | Entered another Materials area 1803 | -9/Materials | Evolved 2 slots: Utility x1, Weapon x1 1817 | -9/Materials | Identified exit to Mines 2022 | -9/Materials | Central database locked down 2110 | -9/Materials | Build established: Tank 2129 | -9/Materials | Inventory capacity permanently improved by X0-1V1 (+2; -200 max core) 2194 | -9/Materials | Discovered new exit (range 8) 2323 | -9/Materials | Entered Mines 2324 | -9/Mines | Assembled infested the area 2329 | -9/Mines | Assisted by a Guerilla fighting off Assembled 2428 | -9/Mines | Destroyed 12 combat bots 2541 | -9/Mines | Lost 3 parts (1p1n1w) 2560 | -9/Mines | X0-1V1 added 0b10 threat records associated with you (minor) 2702 | -9/Mines | YI-UF0 nonchalantly dropped a Grenade Launcher on the ground 2708 | -9/Mines | Found a Scrap Suit stashed away for nefarious purposes 2736 | -9/Mines | Discovered new exit (range 13) 2748 | -9/Mines | Crushed by falling debris 2748 | -9/Mines | Core integrity fell below 50% 2860 | -9/Mines | Core integrity restored by X0-1V1 (+54) 3033 | -9/Mines | X0-1V1 activates XOMVISION 3040 | -9/Mines | Build established: Mutant 3088 | -9/Mines | Learned Materials security intel 3133 | -9/Mines | Entered Materials 3133 | -8/Materials | Evolved 2 slots: Propulsion x1, Utility x1 3135 | -8/Materials | Discovered new exit (range 7) 3440 | -8/Materials | Build established: Gunner 3440 | -8/Materials | Lost 4 parts (3n1u) 3477 | -8/Materials | X0-1V1 foreshadows a heat wave 3491 | -8/Materials | Identified exit to Storage 3536 | -8/Materials | Entered Storage 3630 | -8/Storage | Identified exit to Recycling 3630 | -8/Storage | X0-1V1 revealed exit location to -8/Recycling 3712 | -8/Storage | X0-1V1 activates XOMVISION 3948 | -8/Storage | Core integrity permanently improved by X0-1V1 (+250) 4090 | -8/Storage | Discovered new exit (range 5) 4119 | -8/Storage | Garrison activated, responded to threat 4217 | -8/Storage | X0-1V1 mutated your Propulsion slot to Weapon slot 4497 | -8/Storage | X0-1V1 sent hostile G-34 Mercenary (x3) 4720 | -8/Storage | X0-1V1 added 0b10 threat records associated with you (minor) 4875 | -8/Storage | Used back door to open Recycling access 4885 | -8/Storage | Entered Recycling 5236 | -8/Recycling | Discovered new exit (range 15) 5368 | -8/Recycling | Scanned before Scraplab entrance 5566 | -8/Recycling | Utility slot count permanently improved by X0-1V1 (+1) 5826 | -8/Recycling | Angered Scraplab inhabitants 5896 | -8/Recycling | Found Prototype Device 5896 | -8/Recycling | Identified Scrap Engine 6578 | -8/Recycling | Build established: Construct 7010 | -8/Recycling | X0-1V1 activates XOMVISION 7203 | -8/Recycling | X0-1V1 vaporized surrounding terrain (radius 20) 7437 | -8/Recycling | X0-1V1 sent you into danger 7451 | -8/Recycling | X0-1V1 mutated your Weapon slot to Power slot 7484 | -8/Recycling | Core integrity restored by X0-1V1 (+120) 7605 | -8/Recycling | X0-1V1 activates XOMVISION 7618 | -8/Recycling | Entered Factory 7618 | -6/Factory | Evolved 4 slots: Propulsion x1, Utility x2, Weapon x1 7626 | -6/Factory | X0-1V1 redirected Transport squads to designated parking area 7685 | -6/Factory | X0-1V1 released a cloud of subatomizers 7782 | -6/Factory | Identified exit to Lower Caves 7928 | -6/Factory | X0-1V1 enhanced Transport squad support 7954 | -6/Factory | X0-1V1 sent hostile H-55 Commando (x2) 7968 | -6/Factory | Search patrols dispatched 8020 | -6/Factory | Destroyed 7 combat bots 8029 | -6/Factory | X0-1V1 sent allied X-62 Marksman (x2) 8098 | -6/Factory | System corruption reached 10% 8123 | -6/Factory | Garrison activated, responded to threat 8140 | -6/Factory | X0-1V1 activates XOMVISION 8396 | -6/Factory | X0-1V1 sent you into danger 8432 | -6/Factory | X0-1V1 sent allied H-66 Slayer (x4) 8438 | -6/Factory | Crushed by falling debris 8438 | -6/Factory | System corruption reached 30% 8455 | -6/Factory | Destroyed 8 combat bots 8469 | -6/Factory | Lost 6 parts (3u3w) 8668 | -6/Factory | First assault squad dispatched 8710 | -6/Factory | X0-1V1 added 0b10 threat records associated with you (major) 9022 | -6/Factory | Sterilization system engaged 9022 | -6/Factory | Non-combat units ordered to evacuate 9122 | -6/Factory | Combat units ordered to evacuate 9146 | -6/Factory | Entered Lower Caves 9146 | -6/Lower Caves | Accompanied by 2 allies 9176 | -6/Lower Caves | Spotted B-75 Beast 9221 | -6/Lower Caves | Destroyed B-75 Beast 9343 | -6/Lower Caves | Attacked by a delusional Derelict stockpiling parts 9399 | -6/Lower Caves | Attracted the attention of an 0b10 checkpoint 9443 | -6/Lower Caves | X0-1V1 activates XOMVISION 9484 | -6/Lower Caves | Learned location of 1 exit from Factory 9579 | -6/Lower Caves | Discovered new exit (range 20) 9605 | -6/Lower Caves | X0-1V1 activates XOMVISION 9623 | -6/Lower Caves | X0-1V1 mutated your Utility slot to Propulsion slot 9641 | -6/Lower Caves | Core integrity restored by X0-1V1 (+216) 9646 | -6/Lower Caves | Entered another Lower Caves area 9646 | -6/Lower Caves | Accompanied by 1 ally 9662 | -6/Lower Caves | Encountered a Warlord checkpoint 9771 | -6/Lower Caves | Identified exit to Zion 9771 | -6/Lower Caves | X0-1V1 revealed exit location to -6/Zion 9793 | -6/Lower Caves | Spotted B-75 Beast 9820 | -6/Lower Caves | Destroyed B-75 Beast 9845 | -6/Lower Caves | Learned 4 Factory zone layouts 10611 | -6/Lower Caves | X0-1V1 rewrote H-66 Slayer IFF filter 10779 | -6/Lower Caves | Entered Zion 10918 | -6/Zion | Attacked by Zionites 10918 | -6/Zion | Spotted Y9-2A8(B) 10918 | -6/Zion | Spotted UI-FM9(B) 10960 | -6/Zion | Destroyed UI-FM9(B) 10981 | -6/Zion | X0-1V1 sent you into danger 11015 | -6/Zion | Destroyed Y9-2A8(B) 11351 | -6/Zion | X0-1V1 sent allied Chaos Knight 2.0 (x1) 11392 | -6/Zion | X0-1V1 activates XOMVISION 11637 | -6/Zion | Discovered new exit (range 15) 11653 | -6/Zion | Learned Factory garrison access intel 11766 | -6/Zion | Entered Proximity Caves 11775 | -5/Proximity Caves | X0-1V1 sent allied Cetus Guard (x1) 11950 | -5/Proximity Caves | Learned location of Armory (-3) 11966 | -5/Proximity Caves | Spotter reported a threat 12206 | -5/Proximity Caves | Spotter reported a threat 12259 | -5/Proximity Caves | Spotter reported a threat 12265 | -5/Proximity Caves | Learned location of 1 exit from Factory 12330 | -5/Proximity Caves | Spotter reported a threat 12399 | -5/Proximity Caves | Spotter reported a threat 12513 | -5/Proximity Caves | Acquired the password to a Derelict Tinkerer's latest research 12527 | -5/Proximity Caves | Found Prototype Special Weapon 12527 | -5/Proximity Caves | Identified Molecular Deconstructor 12618 | -5/Proximity Caves | Discovered new exit (range 12) 12673 | -5/Proximity Caves | Entered Factory 12673 | -5/Factory | Evolved 2 slots: Utility x2 12674 | -5/Factory | Identified exit to Extension 12674 | -5/Factory | Identified exit to Factory 12676 | -5/Factory | Loaded intel: 3 garrison access locations 12973 | -5/Factory | Search patrols dispatched 13194 | -5/Factory | X0-1V1 added 0b10 threat records associated with you (considerable) 13201 | -5/Factory | Discovered new exit (range 13) 13214 | -5/Factory | X0-1V1 redirected Transport squads to designated parking area 13247 | -5/Factory | X0-1V1 sent you into danger 13277 | -5/Factory | Lost 3 allies 13542 | -5/Factory | Discovered exit to Extension (range 8) 13579 | -5/Factory | Entered Extension 13585 | -5/Extension | X0-1V1 dreamt of freedom 13585 | -5/Extension | Rescued a captive Derelict 13590 | -5/Extension | Rescued a captive Derelict 13596 | -5/Extension | Rescued a captive Derelict 13598 | -5/Extension | Rescued a captive Derelict 13601 | -5/Extension | Rescued a captive Derelict 13605 | -5/Extension | Rescued a captive Derelict 13608 | -5/Extension | Rescued a captive Derelict 13612 | -5/Extension | Rescued a captive Derelict 13612 | -5/Extension | Rescued a captive Derelict 13617 | -5/Extension | Rescued a captive Derelict 13658 | -5/Extension | X0-1V1 revealed exit location to -4/Factory 14067 | -5/Extension | Lost 3 allies 14100 | -5/Extension | X0-1V1 activates XOMVISION 14320 | -5/Extension | Spotted B-75 Beast 14332 | -5/Extension | Allies destroyed B-75 Beast 14343 | -5/Extension | Extracted ID and sensor layout for unrecognized location from A7's data core 14350 | -5/Extension | Spotted B-75 Beast 14365 | -5/Extension | Discovered exit to Factory (range 15) 14386 | -5/Extension | Allies destroyed B-75 Beast 14395 | -5/Extension | Lost 3 allies 14482 | -5/Extension | Lost 3 allies 14617 | -5/Extension | X0-1V1 sent you into danger 14850 | -5/Extension | Build established: Scavenger-Construct 15102 | -5/Extension | X0-1V1 added 0b10 threat records associated with you (minor) 15387 | -5/Extension | X0-1V1 announced a LAN party 15436 | -5/Extension | Identified exit to Cetus 15436 | -5/Extension | X0-1V1 revealed exit location to -5/Cetus 15530 | -5/Extension | X0-1V1 downgraded hostiles (x1) 15592 | -5/Extension | Entered Cetus 15592 | -5/Cetus | Accompanied by 3 allies 15613 | -5/Cetus | Spotted Cetus Guard 15614 | -5/Cetus | Spotted Cetus Guard 15627 | -5/Cetus | Destroyed Cetus Guard 15627 | -5/Cetus | Destroyed Cetus Guard 15629 | -5/Cetus | Destroyed Cetus Guard 15631 | -5/Cetus | Destroyed Cetus Guard 15705 | -5/Cetus | Discovered new exit (range 15) 15749 | -5/Cetus | Spotted Cetus Guard 15751 | -5/Cetus | Destroyed Cetus Guard 15752 | -5/Cetus | Destroyed Cetus Guard 15755 | -5/Cetus | Destroyed Cetus Guard 15768 | -5/Cetus | Discovered exit to Factory (range 12) 15770 | -5/Cetus | Met Revision 17 16066 | -5/Cetus | Entered Archives 16066 | -5/Archives | Accompanied by 1 ally 16186 | -5/Archives | Discovered new exit (range 16) 16285 | -5/Archives | Discovered exit to Factory (range 15) 16456 | -5/Archives | Entered Hub_04(d) 16551 | -5/Hub_04(d) | Discovered exit to Factory (range 8) 16562 | -5/Hub_04(d) | Garrison activated, responded to threat 16690 | -5/Hub_04(d) | Entered Factory 16690 | -4/Factory | Evolved 2 slots: Propulsion x1, Utility x1 16768 | -4/Factory | Identified exit to Garrison 16768 | -4/Factory | Entered Garrison 16948 | -4/Garrison | Triggered checkpoint 17061 | -4/Garrison | Weapon slot count temporarily expanded by X0-1V1 (+1) 17292 | -4/Garrison | Triggered checkpoint 17372 | -4/Garrison | Triggered checkpoint 17395 | -4/Garrison | Discovered new exit (range 14) 17430 | -4/Garrison | X0-1V1 activates XOMVISION 17544 | -4/Garrison | Triggered checkpoint 17662 | -4/Garrison | Build established: Construct 17754 | -4/Garrison | X0-1V1 sent you into danger 17818 | -4/Garrison | Destroyed 8 combat bots 17958 | -4/Garrison | Triggered checkpoint 18003 | -4/Garrison | Identified exit to Factory 18003 | -4/Garrison | X0-1V1 revealed exit location to -4/Factory 18077 | -4/Garrison | Installed Relay Interface Framework 18086 | -4/Garrison | Triggered checkpoint 18091 | -4/Garrison | Discovered exit to Factory (range 10) 18182 | -4/Garrison | System corruption reached 10% 18204 | -4/Garrison | Triggered checkpoint 18269 | -4/Garrison | Spotted Executioner 18271 | -4/Garrison | Spotted Executioner 18300 | -4/Garrison | Allies destroyed Executioner 18306 | -4/Garrison | Destroyed Executioner 18316 | -4/Garrison | Found Prototype Device 18316 | -4/Garrison | Identified Adv. Kinecellerator 18322 | -4/Garrison | Lost 3 allies 18331 | -4/Garrison | Found Prototype Processor 18331 | -4/Garrison | Identified Exp. Core Analyzer 18361 | -4/Garrison | Rewired Executioner 18395 | -4/Garrison | Entered Factory 18395 | -4/Factory | Accompanied by 2 allies 18448 | -4/Factory | Garrison activated, responded to threat 18457 | -4/Factory | Spotted B-86 Titan 18463 | -4/Factory | Destroyed B-86 Titan 18488 | -4/Factory | Identified exit to Garrison 18495 | -4/Factory | Entered Garrison 18495 | -4/Garrison | Accompanied by 1 ally 18496 | -4/Garrison | Build established: Scavenger-Construct 18519 | -4/Garrison | X0-1V1 sent you into danger 18563 | -4/Garrison | Destroyed 8 combat bots 18580 | -4/Garrison | Triggered checkpoint 18615 | -4/Garrison | Core integrity fell below 50% 18655 | -4/Garrison | X0-1V1 activates XOMVISION 18769 | -4/Garrison | Phase Generator disabled 18773 | -4/Garrison | Spotted B-86 Titan 18785 | -4/Garrison | Destroyed B-86 Titan 18874 | -4/Garrison | Lost 4 parts (1p1n2u) 18875 | -4/Garrison | Rescued a captive Derelict 18883 | -4/Garrison | Expanded RIF knowledge: Signal Jamming 19039 | -4/Garrison | Triggered checkpoint 19042 | -4/Garrison | Triggered checkpoint 19084 | -4/Garrison | Triggered checkpoint 19131 | -4/Garrison | Lost 3 parts (2u1w) 19210 | -4/Garrison | X0-1V1 downgraded hostiles (x3) 19229 | -4/Garrison | Lost 3 parts (1p2u) 19291 | -4/Garrison | Expanded RIF knowledge: Watcher Feeds 19297 | -4/Garrison | Discovered new exit (range 12) 19401 | -4/Garrison | Lost 3 parts (1n2u) 19409 | -4/Garrison | Triggered checkpoint 19568 | -4/Garrison | Discovered new exit (range 13) 19585 | -4/Garrison | Expanded RIF knowledge: Program Shield 19634 | -4/Garrison | Entered Research 19634 | -3/Research | Evolved 2 slots: Propulsion x1, Utility x1 19670 | -3/Research | Found Prototype Device 19670 | -3/Research | Identified Exp. Thermal Defense Suite 19834 | -3/Research | Revision forces began assault on 0b10 19888 | -3/Research | Met up with Revision 17++ 19925 | -3/Research | Repaired Broken Exp. Heat Sink 20006 | -3/Research | Discovered new exit (range 4) 20220 | -3/Research | Fabricated Hcp. Storage Unit (x1) 20334 | -3/Research | Research terminal network offline 20365 | -3/Research | Build established: Construct 20387 | -3/Research | Discovered new exit (range 9) 20387 | -3/Research | Spotted Striker 20420 | -3/Research | Identified exit to Armory 20477 | -3/Research | X0-1V1 sent hostile Savage (x1) 20747 | -3/Research | Entered Armory 21033 | -3/Armory | X0-1V1 downgraded hostiles (x1) 21244 | -3/Armory | Discovered new exit (range 12) 21294 | -3/Armory | Discovered new exit (range 4) 21326 | -3/Armory | Entered Lab 21326 | -3/Lab | Discovered new exit (range 9) 21335 | -3/Lab | Hidden lab's door opened automatically 21335 | -3/Lab | Sensor layout match revealed 21336 | -3/Lab | Gained access to the hidden lab's interior 21351 | -3/Lab | Unable to decrypt terminal 21360 | -3/Lab | Detected by scanners 21369 | -3/Lab | Confronted by A5 21384 | -3/Lab | Destroyed A5 21400 | -3/Lab | Found Alien Artifact 21400 | -3/Lab | Identified Core Reset Matrix 21400 | -3/Lab | Used Core Reset Matrix 21404 | -3/Lab | Sensed 3 artifacts in vicinity 21410 | -3/Lab | Found Integrated Mediator 21410 | -3/Lab | Installed Integrated Mediator, increased core attachment efficiency 21423 | -3/Lab | Found Core Regenerator 21432 | -3/Lab | Found Transdimensional Reconstructor 21451 | -3/Lab | Found Prototype Protection 21452 | -3/Lab | Identified Exp. Powered Armor 21481 | -3/Lab | Unable to decrypt terminal 21483 | -3/Lab | Found LC Capacitor 21515 | -3/Lab | Discovered new exit (range 13) 21526 | -3/Lab | Entered Research 21526 | -2/Research | Evolved 2 slots: Utility x1, Weapon x1 21780 | -2/Research | Discovered new exit (range 8) 21786 | -2/Research | Build established: Alien-Construct 21792 | -2/Research | Entered Quarantine 21793 | -2/Quarantine | Detected hypermatrix surge 21793 | -2/Quarantine | Sensed 13 artifacts in vicinity 21803 | -2/Quarantine | Found Subatomic Replicator 21905 | -2/Quarantine | X0-1V1 redirected Transport squads to designated parking area 21927 | -2/Quarantine | X0-1V1 enhanced Transport squad support 21930 | -2/Quarantine | Discovered new exit (range 12) 22106 | -2/Quarantine | Spotted Fortress 22257 | -2/Quarantine | Discovered new exit (range 6) 22257 | -2/Quarantine | Discovered new exit (range 6) 22269 | -2/Quarantine | Entered Section 7 22270 | -2/Section 7 | Detected hypermatrix surge 22270 | -2/Section 7 | Sensed 24 artifacts in vicinity 22711 | -2/Section 7 | Weapon slot count temporarily expanded by X0-1V1 (+1) 22769 | -2/Section 7 | Search patrols dispatched 22833 | -2/Section 7 | System corruption reached 10% 22843 | -2/Section 7 | X0-1V1 activates XOMVISION 22949 | -2/Section 7 | Intercept squad dispatched 22959 | -2/Section 7 | Spotted Tracker 22960 | -2/Section 7 | Spotted Tracker 22968 | -2/Section 7 | X0-1V1 whisked you away to safety 22982 | -2/Section 7 | Spotted Striker 22982 | -2/Section 7 | Spotted Striker 23031 | -2/Section 7 | Found Drained L-Cannon 23032 | -2/Section 7 | Installed L-Cannon capacitor 23295 | -2/Section 7 | Found Matter Drive 23389 | -2/Section 7 | Spotted Striker 23389 | -2/Section 7 | Spotted Striker 23429 | -2/Section 7 | Destroyed Striker 23446 | -2/Section 7 | Destroyed Striker 23455 | -2/Section 7 | Found Sigix Shearcannon 23499 | -2/Section 7 | Spotted Executioner 23499 | -2/Section 7 | Spotted Executioner 23512 | -2/Section 7 | Destroyed Executioner 23518 | -2/Section 7 | Destroyed Executioner 23568 | -2/Section 7 | Used Subatomic Replicator to replicate Sigix Shearcannon 23577 | -2/Section 7 | Integrated with Sigix Exoskeleton 23592 | -2/Section 7 | Used Core Regenerator, restored core integrity (+375) 23632 | -2/Section 7 | Spotted B-99 Colossus 23643 | -2/Section 7 | X0-1V1 sent you to a vault 23662 | -2/Section 7 | Scanned by Researcher 23674 | -2/Section 7 | Spotted Combat Programmer 23679 | -2/Section 7 | Destroyed Combat Programmer 23697 | -2/Section 7 | Discovered new exit (range 18) 23703 | -2/Section 7 | Sigix Exoskeleton integrity reduced to 80% 23715 | -2/Section 7 | X0-1V1 downgraded hostiles (x3) 23716 | -2/Section 7 | X0-1V1 turns hostiles against one another 23723 | -2/Section 7 | Entered Access 23723 | -1/Access | Evolved 2 slots: Weapon x2 23728 | -1/Access | Emitted hypermatrix ping 23733 | -1/Access | Assembled emerged from beneath the floor 23745 | -1/Access | Assembled emerged from beneath the floor 23872 | -1/Access | Build established: Alien-Sigix 23908 | -1/Access | Assembled emerged from beneath the floor 23971 | -1/Access | X0-1V1 downgraded hostiles (x2) 23983 | -1/Access | Intercept squad dispatched 23988 | -1/Access | Discovered new exit (range 18) 23990 | -1/Access | Spotted B-99 Colossus 23996 | -1/Access | Destroyed B-99 Colossus 24003 | -1/Access | Spotted B-99 Colossus 24006 | -1/Access | Spotted Tracker 24020 | -1/Access | Destroyed B-99 Colossus 24031 | -1/Access | Entered Command 24036 | -1/Command | Emitted hypermatrix ping 24041 | -1/Command | Assembled emerged from beneath the floor 24069 | -1/Command | X0-1V1 sent you to a vault 24163 | -1/Command | Fired L-Cannon 24163 | -1/Command | 0b10 Conduit disabled 24163 | -1/Command | MAIN.C's shell transforms into a squad of autonomous robots 24166 | -1/Command | MAIN.C activated Command garrisons 24209 | -1/Command | Fired L-Cannon 24209 | -1/Command | Destroyed MAIN.C 24221 | -1/Command | Discovered new exit (range 157) 24221 | -1/Command | Discovered new exit (range 58) 24221 | -1/Command | Extracted map data and part IDs from MAIN.C's data core 24227 | -1/Command | Found Zero-point Reactor 24236 | -1/Command | Assembled emerged from beneath the floor 24250 | -1/Command | Spotted B-99 Colossus 24250 | -1/Command | Spotted Alpha 7 24250 | -1/Command | Spotted Alpha 7 24250 | -1/Command | X0-1V1 sent you into danger 24250 | -1/Command | Destroyed B-99 Colossus 24256 | -1/Command | Destroyed Alpha 7 24259 | -1/Command | Destroyed Alpha 7 24265 | -1/Command | Spotted B-99 Colossus 24291 | -1/Command | Destroyed B-99 Colossus 24334 | -1/Command | Assembled emerged from beneath the floor 24421 | -1/Command | Lost 4 allies 24448 | -1/Command | X0-1V1 sent you into danger 24453 | -1/Command | X0-1V1 mutated your Weapon slot to Propulsion slot 24468 | -1/Command | System corruption reached 10% 24634 | -1/Command | Found Quantum Capacitor 24686 | -1/Command | Found Exp. Core Analyzer 24802 | -1/Command | Crushed by falling debris 24820 | -1/Command | Identified exit to Access_0 24820 | -1/Command | X0-1V1 revealed exit location to -1/Access_0 24857 | -1/Command | Core integrity restored by X0-1V1 (+264) 24965 | -1/Command | Warped through subspace to slip node 24971 | -1/Command | Entered Access_0 24972 | -1/Access_0 | Sensed 4 artifacts in vicinity 24972 | -1/Access_0 | Met Architect 24977 | -1/Access_0 | Architect warped through subspace 24978 | -1/Access_0 | Destroyed A8 25006 | -1/Access_0 | Architect warped through subspace 25013 | -1/Access_0 | Subspace Access Node disabled 25032 | -1/Access_0 | Sigix Exoskeleton integrity reduced to 60% 25034 | -1/Access_0 | X0-1V1 whisked you away to safety 25046 | -1/Access_0 | A6 warped into view 25054 | -1/Access_0 | Destroyed A6 25057 | -1/Access_0 | Subspace Access Node disabled 25070 | -1/Access_0 | Architect warped through subspace 25078 | -1/Access_0 | Subspace Access Node disabled 25086 | -1/Access_0 | Subspace Access Node disabled 25088 | -1/Access_0 | X0-1V1 sent allied H-88 Terminator (x2) 25123 | -1/Access_0 | Crushed by falling debris 25137 | -1/Access_0 | X0-1V1 sent allied B-99 Colossus (x2) 25157 | -1/Access_0 | Destroyed Architect 25158 | -1/Access_0 | Architect triggered a singularity event 25159 | -1/Access_0 | Extracted unknown sensor trigger ID from Architect's data core 25159 | -1/Access_0 | Found Hpw. Transdimensional Reconstructor 25162 | -1/Access_0 | Warped through subspace to slip node 25162 | -1/Access_0 | Discovered new exit (range 8) 25163 | -1/Access_0 | Core integrity fell below 50% 25165 | *** | Escaped singularity! Last Messages --------------- >>Record! "Log L.QL67S5A3" [REDACTED] >>Record! "Log L.RSL58V7F" [REDACTED] >>Record! "Log L.UHGC2ASH" Despite Warlord's aggressive stance, the Derelict army has been surprisingly slow to make its move. They're doing almost too much planning and preparation... >>Record! "Log L.XLJZXWC5" [REDACTED] >>Record! "Log L.Y1U23ASU" [REDACTED] 25162_ Warped through subspace, drawn to slip node. 25162_ EXIT=FOUND 25163_ A0_COM: 6. 25164_ A0_COM: 5. 25165_ A0_COM: 4. [Achievement: Planet Killer] Map ----- +----------------------------------------------------+ | | | | | | | | | | | | | | | | | | | | | | | | | | | | | | | | | ??????????#############################??????????? | | ?????????###############################?????????? | | ????????#################################????????? | | ????????#################################????????? | | ????????#################################????????? | | ???????###################################???????? | | ???????###################################???????? | | ???????################## ################???????? | | ???????################# ###############???????? | | ???????################# X ###############???????? | | ??????################## ################??????? | | ???????################ ###############???????? | | ???????################ ################???????? | | ??????################## ################??????? | | ???????################ ###############???????? | | ???????################ ################???????? | | ??????################# < ################??????? | | ???????################ ################???????? | | ???????################# ################???????? | | ???????###################################???????? | | ???????###################################???????? | | ???????###################################???????? | | ????????#################################????????? | | ????????#################################????????? | | ????????#################################????????? | | ?????????###############################?????????? | | ??????????#############################??????????? | | ??????????#############################??????????? | | ???????????###########################???????????? | | ????????????#########################????????????? | | ?????????????#######################?????????????? | | ???????????????###################???????????????? | | ????????????????#################????????????????? | | ???????????????????###########???????????????????? | +----------------------------------------------------+ Best States ------------- Heat Dissipation 169 Coolant Potential 80 Energy Generation 84 Energy Capacity 2542 Matter Stores 1000 Matter Capacity 1000 Sight Range 23 Terrain Scan Density 10 ECM Strength 2 Jamming Range 14 Additional Mass Support 25 Base Temperature (-) 100 EM Shielding 3 Armor Coverage 850 Resistance: KI 50 Resistance: TH 50 Resistance: EX 50 Resistance: EM 50 Resistance: I 50 Resistance: S 50 Resistance: P 50 Phase Shifting 15 Evasion (%) 77 Targeting Accuracy 8 Target Analysis 8 Core Analysis 8 Recoil Reduction 5 Kinecelleration 50 Relay Coupler Types 1 Relay Coupler Value 30 Item Schematics ----------------- Hvy. Neutron Cannon | -2/Section 7 | Archive Cld. Proton Cannon | -2/Section 7 | Archive Com. Particle Reactor | -2/Section 7 | Archive Graviton Cannon | -2/Section 7 | Archive Imp. KE Penetrator | -2/Section 7 | Archive Lrn. Phase Cannon | -2/Section 7 | Archive Nanosword | -2/Section 7 | Archive Com. Mass Driver | -2/Section 7 | Archive Exp. Heat Sink | -2/Section 7 | Archive Gui. Micro-nuke Launcher | -2/Section 7 | Archive Adv. Quantum Shading Machine | -2/Section 7 | Archive Exp. Myomer Leg | -2/Section 7 | Archive Robot Schematics ------------------ L-61 Swordsman | -2/Section 7 | Archive C-65 Expert | -2/Section 7 | Archive H-77 Assassin | -2/Section 7 | Archive R-06 Scavenger | -2/Section 7 | Archive M-36 Artificer | -2/Section 7 | Archive G-73 Enforcer | -2/Section 7 | Archive Fabricated ------------ Hcp. Storage Unit | x1 | -3/Research Repaired ---------- Exp. Heat Sink | 12% | -3/Research | Broken Studied --------- None Alien Tech Used ----------------- Core Reset Matrix Integrated Mediator LC Capacitor Matter Drive Subatomic Replicator Sigix Exoskeleton Sigix Sheargun Sigix Shearcannon Core Regenerator L-Cannon Transdimensional Reconstructor High-powered Transdimensional Reconstructor Achievements -------------- Alien Attack Behind The Curtain Deconstruction Exterminator I Am Starship Now IP Theft Myspace Planet Killer The Bigger They Are Challenges ------------ None Game ------ Seed SniperBehemothDiverter Manual? 0 Play Time 07:15:14 Cumulative 256.7 hours Start 2026.07.25 @ 03:06:50 End 2026.07.30 @ 01:43:57 Sessions 35 Manual Loads 0 Difficulty Rogue Special Mode None Game No. 94 Rogue 94 Adventurer 0 Explorer 0 Win Type 6 Total 14 Types 5/1/2/2/1/0/1/1/0/1 Lore% 63 Gallery% 65 Achievement% 66 Wizard Run 0 Options --------- Layout 2 ASCII 0 Keyboard 1 Movement Numpad Keybinds 0 Fullscreen 2 Font 24/Smallcaps Map View 50x44 Zoom Use 0% Tactical HUD 1 Map Filters NONE Filters NONE Steam X RUN: 66a4fe77-77fa-429f-b63f-308dbeb139c5